Department Family,Entity,Date Paid,Expense Type,Expense Area,Supplier,Transaction Number,Amount (�),Supplier VAT Registration Number
BEIS,Met Office,2020-03-09,11 SERVICES,BUSINESS GROUP,AIRLINES UK-THE ASSOCIATION OF UK AIRLINES,439628,1000,GB802641559
BEIS,Met Office,2020-03-05,11 SERVICES,BUSINESS GROUP,CACI LTD,439478,15648.25,380609841
BEIS,Met Office,2020-03-26,11 SERVICES,BUSINESS GROUP,ESCOTT HUNT LTD,440177,980,815727127
BEIS,Met Office,2020-03-09,04 CONTRACTORS,BUSINESS GROUP,HAYS SPECIALIST RECRUITMENT LTD,439589,704.22,773695871
BEIS,Met Office,2020-03-26,04 CONTRACTORS,BUSINESS GROUP,HAYS SPECIALIST RECRUITMENT LTD,440373,816,773695871
BEIS,Met Office,2020-03-02,04 CONTRACTORS,BUSINESS GROUP,HAYS SPECIALIST RECRUITMENT LTD,439223,820.18,773695871
BEIS,Met Office,2020-03-13,04 CONTRACTORS,BUSINESS GROUP,HAYS SPECIALIST RECRUITMENT LTD,439968,888.54,773695871
BEIS,Met Office,2020-03-26,04 CONTRACTORS,BUSINESS GROUP,HAYS SPECIALIST RECRUITMENT LTD,440301,906.59,773695871
BEIS,Met Office,2020-03-10,06 ACCOMMODATION,BUSINESS GROUP,LHR BUSINESS SUPPORT CENTRE LTD,439641,58.44,927365404
BEIS,Met Office,2020-03-13,11 SERVICES,BUSINESS GROUP,MOMENTUM INCORPORATED,439966,8000,598958541
BEIS,Met Office,2020-03-06,04 CONTRACTORS,BUSINESS GROUP,OUTSOURCE UK LIMITED,439500,10107.59,576118722
BEIS,Met Office,2020-03-09,04 CONTRACTORS,BUSINESS GROUP,SOLOS CONSULTANTS LTD,439523,2247.1,812035476
BEIS,Met Office,2020-03-06,11 SERVICES,BUSINESS GROUP,SPOKE (INTERACTIVE) LTD,439517,700,840156451
BEIS,Met Office,2020-03-26,06 ACCOMMODATION,CHIEF FINANCIAL OFFICER,A & J GARDEN SERVICES LTD,440291,55,190817003
BEIS,Met Office,2020-03-26,06 ACCOMMODATION,CHIEF FINANCIAL OFFICER,A & J GARDEN SERVICES LTD,440291,72,190817003
BEIS,Met Office,2020-03-26,06 ACCOMMODATION,CHIEF FINANCIAL OFFICER,A & J GARDEN SERVICES LTD,440291,78,190817003
BEIS,Met Office,2020-03-26,06 ACCOMMODATION,CHIEF FINANCIAL OFFICER,A & J GARDEN SERVICES LTD,440291,78,190817003
BEIS,Met Office,2020-03-26,06 ACCOMMODATION,CHIEF FINANCIAL OFFICER,A & J GARDEN SERVICES LTD,440291,78,190817003
BEIS,Met Office,2020-03-26,06 ACCOMMODATION,CHIEF FINANCIAL OFFICER,A & J GARDEN SERVICES LTD,440291,78,190817003
BEIS,Met Office,2020-03-26,06 ACCOMMODATION,CHIEF FINANCIAL OFFICER,A & J GARDEN SERVICES LTD,440291,78,190817003
BEIS,Met Office,2020-03-26,06 ACCOMMODATION,CHIEF FINANCIAL OFFICER,A & J GARDEN SERVICES LTD,440291,78,190817003
BEIS,Met Office,2020-03-26,06 ACCOMMODATION,CHIEF FINANCIAL OFFICER,A & J GARDEN SERVICES LTD,440291,100,190817003
BEIS,Met Office,2020-03-26,06 ACCOMMODATION,CHIEF FINANCIAL OFFICER,A & J GARDEN SERVICES LTD,440291,100,190817003
BEIS,Met Office,2020-03-26,06 ACCOMMODATION,CHIEF FINANCIAL OFFICER,A & J GARDEN SERVICES LTD,440291,100,190817003
BEIS,Met Office,2020-03-26,06 ACCOMMODATION,CHIEF FINANCIAL OFFICER,A & J GARDEN SERVICES LTD,440291,100,190817003
BEIS,Met Office,2020-03-26,06 ACCOMMODATION,CHIEF FINANCIAL OFFICER,A & J GARDEN SERVICES LTD,440291,100,190817003
BEIS,Met Office,2020-03-26,06 ACCOMMODATION,CHIEF FINANCIAL OFFICER,A & J GARDEN SERVICES LTD,440291,100,190817003
BEIS,Met Office,2020-03-26,06 ACCOMMODATION,CHIEF FINANCIAL OFFICER,A & J GARDEN SERVICES LTD,440291,100,190817003
BEIS,Met Office,2020-03-26,06 ACCOMMODATION,CHIEF FINANCIAL OFFICER,A & J GARDEN SERVICES LTD,440291,165,190817003
BEIS,Met Office,2020-03-06,06 ACCOMMODATION,CHIEF FINANCIAL OFFICER,ABOVE THE REST COMMERCIAL CLEANING LTD,439420,41,166969348
BEIS,Met Office,2020-03-06,06 ACCOMMODATION,CHIEF FINANCIAL OFFICER,ABOVE THE REST COMMERCIAL CLEANING LTD,439461,565,166969348
BEIS,Met Office,2020-03-26,06 ACCOMMODATION,CHIEF FINANCIAL OFFICER,ACTIVE PEST MANAGEMENT,440164,86.1,791419116
BEIS,Met Office,2020-03-26,11 SERVICES,CHIEF FINANCIAL OFFICER,ALLSTAR BUSINESS SOLUTIONS LTD,440202,3986.55,747880191
BEIS,Met Office,2020-03-03,11 SERVICES,CHIEF FINANCIAL OFFICER,ALLSTAR BUSINESS SOLUTIONS LTD,439284,4083.44,747880191
BEIS,Met Office,2020-03-10,11 SERVICES,CHIEF FINANCIAL OFFICER,ALPHABET (GB) LTD,439803,180.63,572417244
BEIS,Met Office,2020-03-12,11 SERVICES,CHIEF FINANCIAL OFFICER,ALPHABET (GB) LTD,439947,189.8,572417244
BEIS,Met Office,2020-03-11,06 ACCOMMODATION,CHIEF FINANCIAL OFFICER,AMALGAMATED LTD,439867,240,147088158
BEIS,Met Office,2020-03-26,11 SERVICES,CHIEF FINANCIAL OFFICER,ANVIL MOBILE LIMITED,440153,498.12,981686175
BEIS,Met Office,2020-03-26,06 ACCOMMODATION,CHIEF FINANCIAL OFFICER,Bedford Borough Council,440365,12974,-
BEIS,Met Office,2020-03-06,06 ACCOMMODATION,CHIEF FINANCIAL OFFICER,Biffa Waste Services Ltd,439459,262.47,537911627
BEIS,Met Office,2020-03-06,06 ACCOMMODATION,CHIEF FINANCIAL OFFICER,Biffa Waste Services Ltd,439467,538.07,537911627
BEIS,Met Office,2020-03-10,06 ACCOMMODATION,CHIEF FINANCIAL OFFICER,BPC ENERGY LTD,439410,970,177265088
BEIS,Met Office,2020-03-16,06 ACCOMMODATION,CHIEF FINANCIAL OFFICER,BRITISH GAS TRADING LTD,440008,6641.29,684966762
BEIS,Met Office,2020-03-26,06 ACCOMMODATION,CHIEF FINANCIAL OFFICER,BROWN & CO,440361,500,610538078
BEIS,Met Office,2020-03-06,06 ACCOMMODATION,CHIEF FINANCIAL OFFICER,BROXTOWE BOROUGH COUNCIL,439452,11976,118033013
BEIS,Met Office,2020-03-06,11 SERVICES,CHIEF FINANCIAL OFFICER,BT GLOBAL SERVICES,439198,3437.34,245719348
BEIS,Met Office,2020-03-26,11 SERVICES,CHIEF FINANCIAL OFFICER,BT GLOBAL SERVICES,440346,3538.93,245719348
BEIS,Met Office,2020-03-03,11 SERVICES,CHIEF FINANCIAL OFFICER,BT GLOBAL SERVICES,439174,13881,245719348
BEIS,Met Office,2020-03-10,11 SERVICES,CHIEF FINANCIAL OFFICER,BT GLOBAL SERVICES,439390,17901.37,245719348
BEIS,Met Office,2020-03-11,11 SERVICES,CHIEF FINANCIAL OFFICER,BT PLC,439872,266.44,245719348
BEIS,Met Office,2020-03-03,06 ACCOMMODATION,CHIEF FINANCIAL OFFICER,BUSINESS STREAM,439237,128.73,945850885
BEIS,Met Office,2020-03-26,06 ACCOMMODATION,CHIEF FINANCIAL OFFICER,BUSINESS SUPPORT CENTRE LTD,440331,967.12,927365208
BEIS,Met Office,2020-03-26,06 ACCOMMODATION,CHIEF FINANCIAL OFFICER,CALOR GAS LIMITED,440163,621.46,207610984
BEIS,Met Office,2020-03-02,13 MISCELLANEOUS,CHIEF FINANCIAL OFFICER,CANON UK LTD,439151,23.16,523797128
BEIS,Met Office,2020-03-02,13 MISCELLANEOUS,CHIEF FINANCIAL OFFICER,CANON UK LTD,439151,89.74,523797128
BEIS,Met Office,2020-03-02,13 MISCELLANEOUS,CHIEF FINANCIAL OFFICER,CANON UK LTD,439151,89.74,523797128
BEIS,Met Office,2020-03-02,13 MISCELLANEOUS,CHIEF FINANCIAL OFFICER,CANON UK LTD,439151,89.74,523797128
BEIS,Met Office,2020-03-02,13 MISCELLANEOUS,CHIEF FINANCIAL OFFICER,CANON UK LTD,439151,89.74,523797128
BEIS,Met Office,2020-03-02,13 MISCELLANEOUS,CHIEF FINANCIAL OFFICER,CANON UK LTD,439151,89.74,523797128
BEIS,Met Office,2020-03-02,13 MISCELLANEOUS,CHIEF FINANCIAL OFFICER,CANON UK LTD,439151,89.74,523797128
BEIS,Met Office,2020-03-02,13 MISCELLANEOUS,CHIEF FINANCIAL OFFICER,CANON UK LTD,439151,2754.58,523797128
BEIS,Met Office,2020-03-12,13 MISCELLANEOUS,CHIEF FINANCIAL OFFICER,CANON UK LTD,439948,11812.72,523797128
BEIS,Met Office,2020-03-05,06 ACCOMMODATION,CHIEF FINANCIAL OFFICER,CAPITA P&I LTD CLIENT A/C NO12,439336,1357.74,486985565
BEIS,Met Office,2020-03-13,11 SERVICES,CHIEF FINANCIAL OFFICER,CAPITAL CONTRACTS (SW) LTD,439987,3118.8,874200733
BEIS,Met Office,2020-03-04,11 SERVICES,CHIEF FINANCIAL OFFICER,CARDIFF EXECUTIVE CENTRE LTD,439296,16.25,864497378
BEIS,Met Office,2020-03-06,06 ACCOMMODATION,CHIEF FINANCIAL OFFICER,CARDIFF EXECUTIVE CENTRE LTD,439501,2470,864497378
BEIS,Met Office,2020-03-06,06 ACCOMMODATION,CHIEF FINANCIAL OFFICER,CARDIFF EXECUTIVE CENTRE LTD,439502,2470,864497378
BEIS,Met Office,2020-03-06,06 ACCOMMODATION,CHIEF FINANCIAL OFFICER,CARDIFF EXECUTIVE CENTRE LTD,439503,2470,864497378
BEIS,Met Office,2020-03-10,06 ACCOMMODATION,CHIEF FINANCIAL OFFICER,CBRE MANAGED SERVICES LTD,439334,38047.83,853936883
BEIS,Met Office,2020-03-06,06 ACCOMMODATION,CHIEF FINANCIAL OFFICER,CBRE MANAGED SERVICES LTD,439333,39986.44,853936883
BEIS,Met Office,2020-03-06,06 ACCOMMODATION,CHIEF FINANCIAL OFFICER,CBRE MANAGED SERVICES LTD,439332,139091.14,853936883
BEIS,Met Office,2020-03-16,06 ACCOMMODATION,CHIEF FINANCIAL OFFICER,Cheshire East Borough Council,440034,137.23,N/A
BEIS,Met Office,2020-03-26,06 ACCOMMODATION,CHIEF FINANCIAL OFFICER,Cheshire East Borough Council,440157,1172.65,N/A
BEIS,Met Office,2020-03-10,06 ACCOMMODATION,CHIEF FINANCIAL OFFICER,CITY OF CARLISLE,439727,499,257225166
BEIS,Met Office,2020-03-04,06 ACCOMMODATION,CHIEF FINANCIAL OFFICER,CLEANING MATTERS BEDFORD LTD,439286,318.91,847592286
BEIS,Met Office,2020-03-04,06 ACCOMMODATION,CHIEF FINANCIAL OFFICER,CLEANING MATTERS BEDFORD LTD,439287,540,847592286
BEIS,Met Office,2020-03-26,06 ACCOMMODATION,CHIEF FINANCIAL OFFICER,CORNWALL COUNCIL - KERRIER DIVISION,440165,18213.5,-
BEIS,Met Office,2020-03-12,06 ACCOMMODATION,CHIEF FINANCIAL OFFICER,CORONA ENERGY LTD,439804,679.25,577704800
BEIS,Met Office,2020-03-12,06 ACCOMMODATION,CHIEF FINANCIAL OFFICER,CORONA ENERGY LTD,439805,17287.92,577704800
BEIS,Met Office,2020-03-26,11 SERVICES,CHIEF FINANCIAL OFFICER,CORPS SECURITY,439558,822.4,863536505
BEIS,Met Office,2020-03-10,11 SERVICES,CHIEF FINANCIAL OFFICER,CORPS SECURITY,439552,1407,863536505
BEIS,Met Office,2020-03-26,11 SERVICES,CHIEF FINANCIAL OFFICER,CORPS SECURITY,439555,9615.94,863536505
BEIS,Met Office,2020-03-26,11 SERVICES,CHIEF FINANCIAL OFFICER,CORPS SECURITY,439557,19172.2,863536505
BEIS,Met Office,2020-03-26,06 ACCOMMODATION,CHIEF FINANCIAL OFFICER,COUNCIL OF ISLES OF SCILLY,440364,1497,-
BEIS,Met Office,2020-03-03,06 ACCOMMODATION,CHIEF FINANCIAL OFFICER,D&G OFFICE SERVICES LTD,439266,240,272997547
BEIS,Met Office,2020-03-09,FIXTURE & FITTINGS,CHIEF FINANCIAL OFFICER,D&G OFFICE SERVICES LTD,439630,599.65,272997547
BEIS,Met Office,2020-03-09,FIXTURE & FITTINGS,CHIEF FINANCIAL OFFICER,D&G OFFICE SERVICES LTD,439630,599.65,272997547
BEIS,Met Office,2020-03-09,FIXTURE & FITTINGS,CHIEF FINANCIAL OFFICER,D&G OFFICE SERVICES LTD,439630,851.65,272997547
BEIS,Met Office,2020-03-26,06 ACCOMMODATION,CHIEF FINANCIAL OFFICER,DACORUM BOROUGH COUNCIL,440162,8483,-
BEIS,Met Office,2020-03-12,06 ACCOMMODATION,CHIEF FINANCIAL OFFICER,DALCOUR MACLAREN LTD,439939,1500,823 6484 20
BEIS,Met Office,2020-03-04,FIXTURE & FITTINGS,CHIEF FINANCIAL OFFICER,DATANET INSTALLATION SERVICES UK LIMITED,439385,740,830823150
BEIS,Met Office,2020-03-04,13 MISCELLANEOUS,CHIEF FINANCIAL OFFICER,DEMSTAR BUSINESS SOLUTIONS LTD,21230,192.35,10156145J
BEIS,Met Office,2020-03-26,06 ACCOMMODATION,CHIEF FINANCIAL OFFICER,Devon County Council,440182,126561,142208113
BEIS,Met Office,2020-03-03,11 SERVICES,CHIEF FINANCIAL OFFICER,DIGITAL COMMUNICATIONS SYSTEMS LIMITED,439298,5846.87,GB 556 1971 19
BEIS,Met Office,2020-03-05,11 SERVICES,CHIEF FINANCIAL OFFICER,DUN & BRADSTREET LTD,439418,26747,505189158
BEIS,Met Office,2020-03-04,13 MISCELLANEOUS,CHIEF FINANCIAL OFFICER,EAST ANGLIAN WATER COOLER CO,439285,41.9,676668178
BEIS,Met Office,2020-03-26,06 ACCOMMODATION,CHIEF FINANCIAL OFFICER,East Devon District Council,440159,4990,142218990
BEIS,Met Office,2020-03-26,06 ACCOMMODATION,CHIEF FINANCIAL OFFICER,East Devon District Council,440158,197120,142218990
BEIS,Met Office,2020-03-04,13 MISCELLANEOUS,CHIEF FINANCIAL OFFICER,EDEN SPRINGS UK LTD,439288,-6,232160411
BEIS,Met Office,2020-03-04,13 MISCELLANEOUS,CHIEF FINANCIAL OFFICER,EDEN SPRINGS UK LTD,439302,647.4,232160411
BEIS,Met Office,2020-03-10,06 ACCOMMODATION,CHIEF FINANCIAL OFFICER,EDF ENERGY CUSTOMERS PLC,439454,-126969.5,523041202
BEIS,Met Office,2020-03-10,06 ACCOMMODATION,CHIEF FINANCIAL OFFICER,EDF ENERGY CUSTOMERS PLC,439455,-115487.04,523041202
BEIS,Met Office,2020-03-26,06 ACCOMMODATION,CHIEF FINANCIAL OFFICER,EDF ENERGY CUSTOMERS PLC,440028,3969.44,523041202
BEIS,Met Office,2020-03-10,06 ACCOMMODATION,CHIEF FINANCIAL OFFICER,EDF ENERGY CUSTOMERS PLC,439669,106626.67,523041202
BEIS,Met Office,2020-03-10,06 ACCOMMODATION,CHIEF FINANCIAL OFFICER,EDF ENERGY CUSTOMERS PLC,439457,115875.63,523041202
BEIS,Met Office,2020-03-10,06 ACCOMMODATION,CHIEF FINANCIAL OFFICER,EDF ENERGY CUSTOMERS PLC,439664,119490.68,523041202
BEIS,Met Office,2020-03-10,06 ACCOMMODATION,CHIEF FINANCIAL OFFICER,EDF ENERGY CUSTOMERS PLC,439456,127389.65,523041202
BEIS,Met Office,2020-03-10,06 ACCOMMODATION,CHIEF FINANCIAL OFFICER,EDF ENERGY CUSTOMERS PLC,439666,358900.45,523041202
BEIS,Met Office,2020-03-03,03 STAFF COSTS T&S,CHIEF FINANCIAL OFFICER,ENTERPRISE RENT A CAR UK LTD,439308,53.15,215557314
BEIS,Met Office,2020-03-03,03 STAFF COSTS T&S,CHIEF FINANCIAL OFFICER,ENTERPRISE RENT A CAR UK LTD,439283,1344.53,215557314
BEIS,Met Office,2020-03-16,03 STAFF COSTS T&S,CHIEF FINANCIAL OFFICER,ENTERPRISE RENT A CAR UK LTD,440094,2723.31,215557314
BEIS,Met Office,2020-03-03,03 STAFF COSTS T&S,CHIEF FINANCIAL OFFICER,ENTERPRISE RENT A CAR UK LTD,439282,2788.63,215557314
BEIS,Met Office,2020-03-12,03 STAFF COSTS T&S,CHIEF FINANCIAL OFFICER,ENTERPRISE RENT A CAR UK LTD,439944,2868.21,215557314
BEIS,Met Office,2020-03-06,06 ACCOMMODATION,CHIEF FINANCIAL OFFICER,EXETER & DEVON AIRPORT LIMITED,439505,448,168173978
BEIS,Met Office,2020-03-16,06 ACCOMMODATION,CHIEF FINANCIAL OFFICER,Exeter City Council,439907,5613.75,142335594
BEIS,Met Office,2020-03-26,06 ACCOMMODATION,CHIEF FINANCIAL OFFICER,Exeter City Council,440189,140288,142335594
BEIS,Met Office,2020-03-11,11 SERVICES,CHIEF FINANCIAL OFFICER,EXPONENTIAL-E,439860,1973.81,GB798572653
BEIS,Met Office,2020-03-26,11 SERVICES,CHIEF FINANCIAL OFFICER,EXPONENTIAL-E,440156,5620,GB798572653
BEIS,Met Office,2020-03-03,06 ACCOMMODATION,CHIEF FINANCIAL OFFICER,FAIR ISLE ELECTRICITY COMPANY LTD,439163,117.4,774548783
BEIS,Met Office,2020-03-11,06 ACCOMMODATION,CHIEF FINANCIAL OFFICER,FCO SERVICES,439472,16862.56,888848729
BEIS,Met Office,2020-03-17,FIXTURE & FITTINGS,CHIEF FINANCIAL OFFICER,FMS INTERIOR SERVICES LTD,440187,24.46,922056940
BEIS,Met Office,2020-03-17,FIXTURE & FITTINGS,CHIEF FINANCIAL OFFICER,FMS INTERIOR SERVICES LTD,440187,343.52,922056940
BEIS,Met Office,2020-03-17,FIXTURE & FITTINGS,CHIEF FINANCIAL OFFICER,FMS INTERIOR SERVICES LTD,440187,880,922056940
BEIS,Met Office,2020-03-06,06 ACCOMMODATION,CHIEF FINANCIAL OFFICER,FOX GROUNDS MAINTENANCE & LANDSCAPING LTD,439495,296.7,129495383
BEIS,Met Office,2020-03-06,06 ACCOMMODATION,CHIEF FINANCIAL OFFICER,FOX GROUNDS MAINTENANCE & LANDSCAPING LTD,439496,2250,129495383
BEIS,Met Office,2020-03-04,06 ACCOMMODATION,CHIEF FINANCIAL OFFICER,FUTURE CLEANING SERVICES (SW) LTD.,439337,365.28,756916489
BEIS,Met Office,2020-03-06,06 ACCOMMODATION,CHIEF FINANCIAL OFFICER,FUTURE CLEANING SERVICES (SW) LTD.,439504,785.68,756916489
BEIS,Met Office,2020-03-11,06 ACCOMMODATION,CHIEF FINANCIAL OFFICER,FUTURE CLEANING SERVICES (SW) LTD.,439856,820.48,756916489
BEIS,Met Office,2020-03-11,11 SERVICES,CHIEF FINANCIAL OFFICER,GAMMA BUSINESS COMMUNICATIONS LTD,439855,91.9,823820344
BEIS,Met Office,2020-03-11,11 SERVICES,CHIEF FINANCIAL OFFICER,GAMMA BUSINESS COMMUNICATIONS LTD,439855,405.6,823820344
BEIS,Met Office,2020-03-12,11 SERVICES,CHIEF FINANCIAL OFFICER,GAMMA BUSINESS COMMUNICATIONS LTD,439881,3024.88,823820344
BEIS,Met Office,2020-03-12,11 SERVICES,CHIEF FINANCIAL OFFICER,GAMMA BUSINESS COMMUNICATIONS LTD,439882,25624.47,823820344
BEIS,Met Office,2020-03-10,11 SERVICES,CHIEF FINANCIAL OFFICER,GIBRALTAR NYNEX COMMUNICATIONS LTD,439645,2003.66,NOVAT
BEIS,Met Office,2020-03-06,06 ACCOMMODATION,CHIEF FINANCIAL OFFICER,HAFREN DYFRDWY CYFYNGEDIG,439571,375,486985565
BEIS,Met Office,2020-03-11,06 ACCOMMODATION,CHIEF FINANCIAL OFFICER,I J CANNINGS & SON LTD,437663,-3245.8,192803203
BEIS,Met Office,2020-03-11,06 ACCOMMODATION,CHIEF FINANCIAL OFFICER,I J CANNINGS & SON LTD,438711,226.75,192803203
BEIS,Met Office,2020-03-11,06 ACCOMMODATION,CHIEF FINANCIAL OFFICER,I J CANNINGS & SON LTD,439819,226.76,192803203
BEIS,Met Office,2020-03-11,06 ACCOMMODATION,CHIEF FINANCIAL OFFICER,I J CANNINGS & SON LTD,439819,226.77,192803203
BEIS,Met Office,2020-03-11,06 ACCOMMODATION,CHIEF FINANCIAL OFFICER,I J CANNINGS & SON LTD,439819,237.88,192803203
BEIS,Met Office,2020-03-16,06 ACCOMMODATION,CHIEF FINANCIAL OFFICER,I J CANNINGS & SON LTD,440078,275,192803203
BEIS,Met Office,2020-03-11,06 ACCOMMODATION,CHIEF FINANCIAL OFFICER,I J CANNINGS & SON LTD,438164,335.57,192803203
BEIS,Met Office,2020-03-16,06 ACCOMMODATION,CHIEF FINANCIAL OFFICER,I J CANNINGS & SON LTD,440079,436.42,192803203
BEIS,Met Office,2020-03-11,06 ACCOMMODATION,CHIEF FINANCIAL OFFICER,I J CANNINGS & SON LTD,439819,553.31,192803203
BEIS,Met Office,2020-03-11,06 ACCOMMODATION,CHIEF FINANCIAL OFFICER,I J CANNINGS & SON LTD,438711,688.8,192803203
BEIS,Met Office,2020-03-11,06 ACCOMMODATION,CHIEF FINANCIAL OFFICER,I J CANNINGS & SON LTD,438711,690.65,192803203
BEIS,Met Office,2020-03-11,06 ACCOMMODATION,CHIEF FINANCIAL OFFICER,I J CANNINGS & SON LTD,438711,690.65,192803203
BEIS,Met Office,2020-03-26,FIXTURE & FITTINGS,CHIEF FINANCIAL OFFICER,I J CANNINGS & SON LTD,440354,7656.57,192803203
BEIS,Met Office,2020-03-17,11 SERVICES,CHIEF FINANCIAL OFFICER,INTEROUTE COMMUNICATIONS LIMITED,440174,4931.94,832 7071 39
BEIS,Met Office,2020-03-10,11 SERVICES,CHIEF FINANCIAL OFFICER,JERSEY TELECOM,439668,1129.27,NOTVATREG
BEIS,Met Office,2020-03-05,06 ACCOMMODATION,CHIEF FINANCIAL OFFICER,LARS COMMUNICATIONS LTD,439391,2810,531463858
BEIS,Met Office,2020-03-05,FIXTURE & FITTINGS,CHIEF FINANCIAL OFFICER,LARS COMMUNICATIONS LTD,439469,5700,531463858
BEIS,Met Office,2020-03-26,03 STAFF COSTS T&S,CHIEF FINANCIAL OFFICER,LEASEDRIVE RENTAL MANAGEMENT LTD,440253,767.84,733546040
BEIS,Met Office,2020-03-26,06 ACCOMMODATION,CHIEF FINANCIAL OFFICER,LHR BUSINESS SUPPORT CENTRE LTD,440222,3062.92,927365404
BEIS,Met Office,2020-03-04,11 SERVICES,CHIEF FINANCIAL OFFICER,LICENCE BUREAU LTD,439253,149,820219467
BEIS,Met Office,2020-03-16,11 SERVICES,CHIEF FINANCIAL OFFICER,MANX TELECOM LTD,440083,53.21,003291912
BEIS,Met Office,2020-03-16,11 SERVICES,CHIEF FINANCIAL OFFICER,MANX TELECOM LTD,440084,53.21,003291912
BEIS,Met Office,2020-03-11,11 SERVICES,CHIEF FINANCIAL OFFICER,MAWASEM LTD,439254,203974.84,197694731
BEIS,Met Office,2020-03-10,11 SERVICES,CHIEF FINANCIAL OFFICER,MITIE SECURITY LTD,439662,766.5,416706654
BEIS,Met Office,2020-03-26,06 ACCOMMODATION,CHIEF FINANCIAL OFFICER,MOUNT CHARLES GROUP LTD,440095,485.72,517116274
BEIS,Met Office,2020-03-26,06 ACCOMMODATION,CHIEF FINANCIAL OFFICER,NESS ENGINEERING LTD,440305,393.6,430188472
BEIS,Met Office,2020-03-10,06 ACCOMMODATION,CHIEF FINANCIAL OFFICER,NESS ENGINEERING LTD,439738,425.78,430188472
BEIS,Met Office,2020-03-06,06 ACCOMMODATION,CHIEF FINANCIAL OFFICER,NORSCOTT VENDING SERVICES LTD,439419,85,751402071
BEIS,Met Office,2020-03-16,06 ACCOMMODATION,CHIEF FINANCIAL OFFICER,NORTH WARWICKSHIRE BOROUGH COUNCIL,440033,1497,N/A
BEIS,Met Office,2020-03-06,06 ACCOMMODATION,CHIEF FINANCIAL OFFICER,OCS Group UK Limited,439475,143665.79,GB238034379
BEIS,Met Office,2020-03-05,13 MISCELLANEOUS,CHIEF FINANCIAL OFFICER,POSTURITE (UK) LTD,439339,17.98,583565114
BEIS,Met Office,2020-03-05,13 MISCELLANEOUS,CHIEF FINANCIAL OFFICER,POSTURITE (UK) LTD,439506,23.53,583565114
BEIS,Met Office,2020-03-16,13 MISCELLANEOUS,CHIEF FINANCIAL OFFICER,POSTURITE (UK) LTD,440075,34.07,583565114
BEIS,Met Office,2020-03-03,13 MISCELLANEOUS,CHIEF FINANCIAL OFFICER,POSTURITE (UK) LTD,439091,36.55,583565114
BEIS,Met Office,2020-03-05,13 MISCELLANEOUS,CHIEF FINANCIAL OFFICER,POSTURITE (UK) LTD,439534,80.57,583565114
BEIS,Met Office,2020-03-03,FIXTURE & FITTINGS,CHIEF FINANCIAL OFFICER,POSTURITE (UK) LTD,431136,128.34,583565114
BEIS,Met Office,2020-03-26,13 MISCELLANEOUS,CHIEF FINANCIAL OFFICER,POSTURITE (UK) LTD,440360,609.46,583565114
BEIS,Met Office,2020-03-17,13 MISCELLANEOUS,CHIEF FINANCIAL OFFICER,POSTURITE (UK) LTD,439990,654.1,583565114
BEIS,Met Office,2020-03-02,13 MISCELLANEOUS,CHIEF FINANCIAL OFFICER,POSTURITE (UK) LTD,439093,1726.94,583565114
BEIS,Met Office,2020-03-03,13 MISCELLANEOUS,CHIEF FINANCIAL OFFICER,POSTURITE (UK) LTD,439092,1854.21,583565114
BEIS,Met Office,2020-03-10,06 ACCOMMODATION,CHIEF FINANCIAL OFFICER,POWER NI ENERGY LTD,439665,688.44,617518142
BEIS,Met Office,2020-03-12,11 SERVICES,CHIEF FINANCIAL OFFICER,PROFESSIONAL CONFERENCES,439949,248,985644271
BEIS,Met Office,2020-03-10,06 ACCOMMODATION,CHIEF FINANCIAL OFFICER,R BROOKS - TATTON ESTATE,439660,1100,185664958
BEIS,Met Office,2020-03-06,06 ACCOMMODATION,CHIEF FINANCIAL OFFICER,REDACTED � PERSONAL DATA,439335,200,N/A
BEIS,Met Office,2020-03-26,11 SERVICES,CHIEF FINANCIAL OFFICER,REDACTED � PERSONAL DATA,440296,253.3,729159704
BEIS,Met Office,2020-03-17,13 MISCELLANEOUS,CHIEF FINANCIAL OFFICER,REDACTED � PERSONAL DATA,439392,298,NOTVATREG
BEIS,Met Office,2020-03-09,06 ACCOMMODATION,CHIEF FINANCIAL OFFICER,REDACTED � PERSONAL DATA,439659,576,165182855
BEIS,Met Office,2020-03-18,06 ACCOMMODATION,CHIEF FINANCIAL OFFICER,REDACTED � PERSONAL DATA,439599,664,-
BEIS,Met Office,2020-03-02,06 ACCOMMODATION,CHIEF FINANCIAL OFFICER,REDACTED � PERSONAL DATA,439183,800,426523462
BEIS,Met Office,2020-03-09,06 ACCOMMODATION,CHIEF FINANCIAL OFFICER,REDACTED � PERSONAL DATA,439659,862,165182855
BEIS,Met Office,2020-03-09,06 ACCOMMODATION,CHIEF FINANCIAL OFFICER,REDACTED � PERSONAL DATA,439659,862,165182855
BEIS,Met Office,2020-03-09,06 ACCOMMODATION,CHIEF FINANCIAL OFFICER,REDACTED � PERSONAL DATA,439659,862,165182855
BEIS,Met Office,2020-03-09,06 ACCOMMODATION,CHIEF FINANCIAL OFFICER,REDACTED � PERSONAL DATA,439659,862,165182855
BEIS,Met Office,2020-03-26,06 ACCOMMODATION,CHIEF FINANCIAL OFFICER,REDACTED � PERSONAL DATA,440181,945,899936427
BEIS,Met Office,2020-03-11,06 ACCOMMODATION,CHIEF FINANCIAL OFFICER,REDACTED � PERSONAL DATA,439726,3754,001874305
BEIS,Met Office,2020-03-11,06 ACCOMMODATION,CHIEF FINANCIAL OFFICER,REDACTED � PERSONAL DATA,439883,13085,233585557
BEIS,Met Office,2020-03-03,06 ACCOMMODATION,CHIEF FINANCIAL OFFICER,ROLLO POWER SOLUTIONS,438172,555.68,100516042
BEIS,Met Office,2020-03-26,03 STAFF COSTS T&S,CHIEF FINANCIAL OFFICER,SADDLES & PADDLES EXETER LTD,440278,920,152264528
BEIS,Met Office,2020-03-13,06 ACCOMMODATION,CHIEF FINANCIAL OFFICER,SAFESTORE LTD,439899,2681.21,722887607
BEIS,Met Office,2020-03-10,13 MISCELLANEOUS,CHIEF FINANCIAL OFFICER,Scottish Government,439667,3.92,888842551
BEIS,Met Office,2020-03-16,13 MISCELLANEOUS,CHIEF FINANCIAL OFFICER,Scottish Government,439951,14.19,888842551
BEIS,Met Office,2020-03-10,06 ACCOMMODATION,CHIEF FINANCIAL OFFICER,Scottish Government,436714,752.03,888842551
BEIS,Met Office,2020-03-16,13 MISCELLANEOUS,CHIEF FINANCIAL OFFICER,SELECTA UK LTD,440081,13.39,581705924
BEIS,Met Office,2020-03-16,13 MISCELLANEOUS,CHIEF FINANCIAL OFFICER,SELECTA UK LTD,440032,33.87,581705924
BEIS,Met Office,2020-03-04,13 MISCELLANEOUS,CHIEF FINANCIAL OFFICER,SELECTA UK LTD,439341,173.31,581705924
BEIS,Met Office,2020-03-06,06 ACCOMMODATION,CHIEF FINANCIAL OFFICER,Severn Trent Water Ltd,439462,556.68,486985565
BEIS,Met Office,2020-03-26,06 ACCOMMODATION,CHIEF FINANCIAL OFFICER,SHETLAND CLEANING SERVICES,440082,696.67,430028404
BEIS,Met Office,2020-03-26,06 ACCOMMODATION,CHIEF FINANCIAL OFFICER,Shropshire Council,440161,12225.5,-
BEIS,Met Office,2020-03-06,11 SERVICES,CHIEF FINANCIAL OFFICER,Siemens Plc,439499,685.26,GB 927 317 516
BEIS,Met Office,2020-03-11,FIXTURE & FITTINGS,CHIEF FINANCIAL OFFICER,SIGNS EXPRESS (EXETER),439593,60,631397439
BEIS,Met Office,2020-03-11,FIXTURE & FITTINGS,CHIEF FINANCIAL OFFICER,SIGNS EXPRESS (EXETER),439593,185.5,631397439
BEIS,Met Office,2020-03-09,04 CONTRACTORS,CHIEF FINANCIAL OFFICER,SOLOS CONSULTANTS LTD,439568,2999.7,812035476
BEIS,Met Office,2020-03-09,04 CONTRACTORS,CHIEF FINANCIAL OFFICER,SOLOS CONSULTANTS LTD,439528,5718.24,812035476
BEIS,Met Office,2020-03-16,06 ACCOMMODATION,CHIEF FINANCIAL OFFICER,SOUTH WEST WATER LTD,440035,590.12,236873674
BEIS,Met Office,2020-03-10,06 ACCOMMODATION,CHIEF FINANCIAL OFFICER,SOUTH WEST WATER LTD,439417,6989.96,236873674
BEIS,Met Office,2020-03-03,06 ACCOMMODATION,CHIEF FINANCIAL OFFICER,SSE CONTRACTING LTD,438812,-56.15,570118464
BEIS,Met Office,2020-03-10,06 ACCOMMODATION,CHIEF FINANCIAL OFFICER,STONE HILL PARK LTD,439656,38.67,196461180
BEIS,Met Office,2020-03-10,11 SERVICES,CHIEF FINANCIAL OFFICER,SURE SOUTH ATLANTIC LTD,439742,563,-
BEIS,Met Office,2020-03-11,11 SERVICES,CHIEF FINANCIAL OFFICER,SURE SOUTH ATLANTIC LTD,439817,584.8,NOVATREG
BEIS,Met Office,2020-03-10,11 SERVICES,CHIEF FINANCIAL OFFICER,SURE SOUTH ATLANTIC LTD,439741,4743,-
BEIS,Met Office,2020-03-11,11 SERVICES,CHIEF FINANCIAL OFFICER,SURE SOUTH ATLANTIC LTD (ST HELENA),439870,426.32,30005
BEIS,Met Office,2020-03-16,11 SERVICES,CHIEF FINANCIAL OFFICER,TELEFONICA O2 UK LIMITED,440070,5815.4,778603785
BEIS,Met Office,2020-03-16,11 SERVICES,CHIEF FINANCIAL OFFICER,TELEFONICA O2 UK LIMITED,440068,7572.53,778603785
BEIS,Met Office,2020-03-16,11 SERVICES,CHIEF FINANCIAL OFFICER,TELEFONICA O2 UK LIMITED,440069,7647.17,778603785
BEIS,Met Office,2020-03-13,11 SERVICES,CHIEF FINANCIAL OFFICER,TELEFONICA O2 UK LIMITED,439908,25450,778603785
BEIS,Met Office,2020-03-11,11 SERVICES,CHIEF FINANCIAL OFFICER,TELIA FINLAND OYJ,21257,58.64,FI14756079
BEIS,Met Office,2020-03-10,06 ACCOMMODATION,CHIEF FINANCIAL OFFICER,TENNIE FACILITIES PROPERTY MANAGEMENT LTD,439453,165.72,982055803
BEIS,Met Office,2020-03-06,06 ACCOMMODATION,CHIEF FINANCIAL OFFICER,TRANSFORM,439510,1088.45,907839882
BEIS,Met Office,2020-03-10,06 ACCOMMODATION,CHIEF FINANCIAL OFFICER,Trinity House,439781,-600,243120414
BEIS,Met Office,2020-03-10,06 ACCOMMODATION,CHIEF FINANCIAL OFFICER,Trinity House,439782,-480,243120414
BEIS,Met Office,2020-03-10,06 ACCOMMODATION,CHIEF FINANCIAL OFFICER,Trinity House,439661,480,243120414
BEIS,Met Office,2020-03-10,06 ACCOMMODATION,CHIEF FINANCIAL OFFICER,Trinity House,439657,600,243120414
BEIS,Met Office,2020-03-16,06 ACCOMMODATION,CHIEF FINANCIAL OFFICER,University Of Birmingham,440072,491.04,729856187
BEIS,Met Office,2020-03-05,06 ACCOMMODATION,CHIEF FINANCIAL OFFICER,VICKERY HOLMAN,439460,4015.62,943875678
BEIS,Met Office,2020-03-04,04 CONTRACTORS,CHIEF FINANCIAL OFFICER,WA CONSULTANTS LTD,439343,3750,876328977
BEIS,Met Office,2020-03-05,04 CONTRACTORS,CHIEF FINANCIAL OFFICER,WA CONSULTANTS LTD,439465,6981,876328977
BEIS,Met Office,2020-03-05,04 CONTRACTORS,CHIEF FINANCIAL OFFICER,WA CONSULTANTS LTD,439468,7936.5,876328977
BEIS,Met Office,2020-03-05,04 CONTRACTORS,CHIEF FINANCIAL OFFICER,WA CONSULTANTS LTD,439466,8700,876328977
BEIS,Met Office,2020-03-04,06 ACCOMMODATION,CHIEF FINANCIAL OFFICER,WAGSTAFF GROUP,439307,9293.46,-
BEIS,Met Office,2020-03-05,06 ACCOMMODATION,CHIEF FINANCIAL OFFICER,WEALDEN DISTRICT COUNCIL,439463,1322.35,210898561
BEIS,Met Office,2020-03-03,11 SERVICES,CHIEF FINANCIAL OFFICER,WEBEX COMMUNICATIONS UK LTD,439199,322.78,815974302
BEIS,Met Office,2020-03-26,06 ACCOMMODATION,CHIEF FINANCIAL OFFICER,WEST LANCASHIRE BOROUGH COUNCIL,440160,4840.3,-
BEIS,Met Office,2020-03-16,06 ACCOMMODATION,CHIEF FINANCIAL OFFICER,WILTSHIRE COUNCIL,440030,4890.2,-
BEIS,Met Office,2020-03-13,06 ACCOMMODATION,CHIEF FINANCIAL OFFICER,WOKINGHAM BOROUGH COUNCIL,438031,-3387.48,-
BEIS,Met Office,2020-03-13,06 ACCOMMODATION,CHIEF FINANCIAL OFFICER,WOKINGHAM BOROUGH COUNCIL,438032,-322.04,-
BEIS,Met Office,2020-03-13,06 ACCOMMODATION,CHIEF FINANCIAL OFFICER,WOKINGHAM BOROUGH COUNCIL,439871,962.17,-
BEIS,Met Office,2020-03-13,06 ACCOMMODATION,CHIEF FINANCIAL OFFICER,WOKINGHAM BOROUGH COUNCIL,439878,3131.76,-
BEIS,Met Office,2020-03-10,06 ACCOMMODATION,CHIEF FINANCIAL OFFICER,WYCHAVON DISTRICT COUNCIL,439658,905.57,-
BEIS,Met Office,2020-03-06,11 SERVICES,CHIEF FINANCIAL OFFICER,XPEDITE SYSTEMS (UK) LTD,439479,100,599016994
BEIS,Met Office,2020-03-04,11 SERVICES,CORPORATE,BI-DESIGN EUROPE LTD T/A HOME,439350,1869.91,-
BEIS,Met Office,2020-03-04,11 SERVICES,CORPORATE,BI-DESIGN EUROPE LTD T/A HOME,439351,6463,-
BEIS,Met Office,2020-03-11,11 SERVICES,CORPORATE,CABINET OFFICE - COF LEAD ACCOUNT,439877,100,-
BEIS,Met Office,2020-03-17,11 SERVICES,CORPORATE,CMC PARTNERSHIP GLOBAL LTD,440073,5388.77,303694803
BEIS,Met Office,2020-03-02,11 SERVICES,CORPORATE,COHN & WOLFE,439159,5500,GB 232168974
BEIS,Met Office,2020-03-13,11 SERVICES,CORPORATE,DBS FINANCE RECEIPTS CTS,438462,1018.18,888805068
BEIS,Met Office,2020-03-03,11 SERVICES,CORPORATE,ECA INTERNATIONAL,439291,165,238549825
BEIS,Met Office,2020-03-05,11 SERVICES,CORPORATE,EQUINITI ICS LTD,439476,316.66,915967778
BEIS,Met Office,2020-03-11,11 SERVICES,CORPORATE,EQUINITI ICS LTD,439471,6974,915967778
BEIS,Met Office,2020-03-11,11 SERVICES,CORPORATE,FALCON.IO,439598,29160,DK 3336 2226
BEIS,Met Office,2020-03-16,11 SERVICES,CORPORATE,GRANICUS LLC,440012,25879.99,-
BEIS,Met Office,2020-03-12,11 SERVICES,CORPORATE,HANDS FREE COMPUTING LTD,439884,2400,700602494
BEIS,Met Office,2020-03-13,11 SERVICES,CORPORATE,HAWK INCENTIVES LTD,440014,-136.5,238839422
BEIS,Met Office,2020-03-13,11 SERVICES,CORPORATE,HAWK INCENTIVES LTD,439485,3942.75,238839422
BEIS,Met Office,2020-03-17,11 SERVICES,CORPORATE,HAWK INCENTIVES LTD,440080,4105.5,238839422
BEIS,Met Office,2020-03-02,11 SERVICES,CORPORATE,HAWK INCENTIVES LTD,439080,29662.5,238839422
BEIS,Met Office,2020-03-02,04 CONTRACTORS,CORPORATE,HAYS SPECIALIST RECRUITMENT LTD,439224,183.08,773695871
BEIS,Met Office,2020-03-13,04 CONTRACTORS,CORPORATE,HAYS SPECIALIST RECRUITMENT LTD,439970,305.13,773695871
BEIS,Met Office,2020-03-26,04 CONTRACTORS,CORPORATE,HAYS SPECIALIST RECRUITMENT LTD,440300,366.16,773695871
BEIS,Met Office,2020-03-13,04 CONTRACTORS,CORPORATE,HAYS SPECIALIST RECRUITMENT LTD,439971,378.37,773695871
BEIS,Met Office,2020-03-02,04 CONTRACTORS,CORPORATE,HAYS SPECIALIST RECRUITMENT LTD,439221,658.24,773695871
BEIS,Met Office,2020-03-02,04 CONTRACTORS,CORPORATE,HAYS SPECIALIST RECRUITMENT LTD,439226,658.25,773695871
BEIS,Met Office,2020-03-09,04 CONTRACTORS,CORPORATE,HAYS SPECIALIST RECRUITMENT LTD,439532,658.25,773695871
BEIS,Met Office,2020-03-09,04 CONTRACTORS,CORPORATE,HAYS SPECIALIST RECRUITMENT LTD,439588,658.25,773695871
BEIS,Met Office,2020-03-13,04 CONTRACTORS,CORPORATE,HAYS SPECIALIST RECRUITMENT LTD,439967,658.25,773695871
BEIS,Met Office,2020-03-13,04 CONTRACTORS,CORPORATE,HAYS SPECIALIST RECRUITMENT LTD,439972,658.25,773695871
BEIS,Met Office,2020-03-26,04 CONTRACTORS,CORPORATE,HAYS SPECIALIST RECRUITMENT LTD,440318,658.25,773695871
BEIS,Met Office,2020-03-26,04 CONTRACTORS,CORPORATE,HAYS SPECIALIST RECRUITMENT LTD,440319,658.25,773695871
BEIS,Met Office,2020-03-11,11 SERVICES,CORPORATE,MERKLE UK THREE LTD T/A MERKLE PERISCOPIX,439723,8213.33,843316243
BEIS,Met Office,2020-03-26,11 SERVICES,CORPORATE,MILLS AND SONS LTD,440203,426.7,808366053
BEIS,Met Office,2020-03-26,11 SERVICES,CORPORATE,MILLS AND SONS LTD,440252,503.4,808366053
BEIS,Met Office,2020-03-05,11 SERVICES,CORPORATE,MOUNT CHARLES GROUP LTD,439409,1252.2,517116274
BEIS,Met Office,2020-03-09,11 SERVICES,CORPORATE,NLA MEDIA ACCESS LTD,439498,320.5,661865215
BEIS,Met Office,2020-03-09,11 SERVICES,CORPORATE,NLA MEDIA ACCESS LTD,439497,24201.28,661865215
BEIS,Met Office,2020-03-26,11 SERVICES,CORPORATE,OPUS PERFORMANCE LTD,440348,1300,831961423
BEIS,Met Office,2020-03-11,11 SERVICES,CORPORATE,PSYCHOLOGICA,439811,50,143530636
BEIS,Met Office,2020-03-16,04 CONTRACTORS,CORPORATE,QUINTON DAVIES LIMITED,436658,-17409.78,291532892
BEIS,Met Office,2020-03-11,04 CONTRACTORS,CORPORATE,QUINTON DAVIES LIMITED,439394,-17409.78,291532892
BEIS,Met Office,2020-03-11,04 CONTRACTORS,CORPORATE,QUINTON DAVIES LIMITED,439395,84.78,291532892
BEIS,Met Office,2020-03-11,04 CONTRACTORS,CORPORATE,QUINTON DAVIES LIMITED,439876,4290,291532892
BEIS,Met Office,2020-03-12,04 CONTRACTORS,CORPORATE,QUINTON DAVIES LIMITED,439739,14437.5,291532892
BEIS,Met Office,2020-03-11,04 CONTRACTORS,CORPORATE,QUINTON DAVIES LIMITED,439396,17325,291532892
BEIS,Met Office,2020-03-16,04 CONTRACTORS,CORPORATE,QUINTON DAVIES LIMITED,436328,17409.78,291532892
BEIS,Met Office,2020-03-16,04 CONTRACTORS,CORPORATE,QUINTON DAVIES LIMITED,436660,17409.78,291532892
BEIS,Met Office,2020-03-26,11 SERVICES,CORPORATE,REDACTED � PERSONAL DATA,435542,195,143043312
BEIS,Met Office,2020-03-10,11 SERVICES,CORPORATE,REDACTED � PERSONAL DATA,439415,300,-
BEIS,Met Office,2020-03-10,11 SERVICES,CORPORATE,REED BUSINESS INFORMATION LTD,439580,9738.4,235723562
BEIS,Met Office,2020-03-11,11 SERVICES,CORPORATE,SIGNS EXPRESS (EXETER),439861,440,631397439
BEIS,Met Office,2020-03-09,04 CONTRACTORS,CORPORATE,SOLOS CONSULTANTS LTD,439560,7995.6,812035476
BEIS,Met Office,2020-03-09,04 CONTRACTORS,CORPORATE,SOLOS CONSULTANTS LTD,439550,8469.88,812035476
BEIS,Met Office,2020-03-09,04 CONTRACTORS,CORPORATE,SOLOS CONSULTANTS LTD,439536,8925.2,812035476
BEIS,Met Office,2020-03-09,04 CONTRACTORS,CORPORATE,SOLOS CONSULTANTS LTD,439542,9991.6,812035476
BEIS,Met Office,2020-03-16,11 SERVICES,CORPORATE,SPIRAL WELLBEING,439958,119,-
BEIS,Met Office,2020-03-26,11 SERVICES,CORPORATE,SWANTECH LOGISTICS LTD,440266,425,769332401
BEIS,Met Office,2020-03-04,11 SERVICES,CORPORATE,SWANTECH LOGISTICS LTD,439353,2187.48,769332401
BEIS,Met Office,2020-03-26,11 SERVICES,CORPORATE,SWANTECH LOGISTICS LTD,440270,2645,769332401
BEIS,Met Office,2020-03-02,11 SERVICES,CORPORATE,UNIVERSITY OF EXETER,439015,3182.7,142047795
BEIS,Met Office,2020-03-02,04 CONTRACTORS,CORPORATE,WA CONSULTANTS LTD,439177,5258.52,876328977
BEIS,Met Office,2020-03-11,11 SERVICES,CORPORATE,YOUGOV PLC,439857,3120,991228109
BEIS,Met Office,2020-03-16,08 SOFTWARE LICENCES,CORPORATE,ZELLIS  UK LIMITED,438997,28920.09,207588545
BEIS,Met Office,2020-03-03,11 SERVICES,GOVERNMENT SERVICES,ADOPSTAR,439290,1250,115036848
BEIS,Met Office,2020-03-02,11 SERVICES,GOVERNMENT SERVICES,AXIANS NETWORKS LTD,439239,93.77,758219993
BEIS,Met Office,2020-03-06,11 SERVICES,GOVERNMENT SERVICES,BBC MEDIA ACTION,439627,9403,GB333289454
BEIS,Met Office,2020-03-02,11 SERVICES,GOVERNMENT SERVICES,BJSS LIMITED,439132,138.63,613295452
BEIS,Met Office,2020-03-13,11 SERVICES,GOVERNMENT SERVICES,BJSS LIMITED,439902,161.37,613295452
BEIS,Met Office,2020-03-02,11 SERVICES,GOVERNMENT SERVICES,BJSS LIMITED,439132,1700,613295452
BEIS,Met Office,2020-03-12,11 SERVICES,GOVERNMENT SERVICES,BJSS LIMITED,439897,1939.74,613295452
BEIS,Met Office,2020-03-04,11 SERVICES,GOVERNMENT SERVICES,BJSS LIMITED,439293,6480,613295452
BEIS,Met Office,2020-03-04,11 SERVICES,GOVERNMENT SERVICES,BJSS LIMITED,439293,6778.76,613295452
BEIS,Met Office,2020-03-13,11 SERVICES,GOVERNMENT SERVICES,BJSS LIMITED,439902,7650,613295452
BEIS,Met Office,2020-03-04,11 SERVICES,GOVERNMENT SERVICES,BJSS LIMITED,439293,14999,613295452
BEIS,Met Office,2020-03-02,11 SERVICES,GOVERNMENT SERVICES,CACI LTD,439094,1644.5,380609841
BEIS,Met Office,2020-03-02,11 SERVICES,GOVERNMENT SERVICES,CACI LTD,439094,2113.56,380609841
BEIS,Met Office,2020-03-26,11 SERVICES,GOVERNMENT SERVICES,CACI LTD,440297,4240,380609841
BEIS,Met Office,2020-03-05,11 SERVICES,GOVERNMENT SERVICES,CACI LTD,439480,6190.5,380609841
BEIS,Met Office,2020-03-05,11 SERVICES,GOVERNMENT SERVICES,CACI LTD,439480,6217,380609841
BEIS,Met Office,2020-03-02,11 SERVICES,GOVERNMENT SERVICES,CACI LTD,439094,7766.9,380609841
BEIS,Met Office,2020-03-05,11 SERVICES,GOVERNMENT SERVICES,CACI LTD,439480,15323.39,380609841
BEIS,Met Office,2020-03-26,11 SERVICES,GOVERNMENT SERVICES,CENTRO INTERNACIONAL DE AGRICULTURA TROPICAL,440288,4127,na
BEIS,Met Office,2020-03-18,11 SERVICES,GOVERNMENT SERVICES,CONSULTEC,21275,4430.17,400005915
BEIS,Met Office,2020-03-11,11 SERVICES,GOVERNMENT SERVICES,CONSULTEC,21274,14308.63,400005915
BEIS,Met Office,2020-03-18,11 SERVICES,GOVERNMENT SERVICES,DBS FINANCE RECEIPTS CTS,440168,12377.18,888805068
BEIS,Met Office,2020-03-18,11 SERVICES,GOVERNMENT SERVICES,DELTARES,21284,13586.08,NL800097476B01
BEIS,Met Office,2020-03-04,11 SERVICES,GOVERNMENT SERVICES,DELTARES,21258,23365.2,NL800097476B01
BEIS,Met Office,2020-03-02,11 SERVICES,GOVERNMENT SERVICES,DJS RESEARCH LIMITED,439035,9894,775718779
BEIS,Met Office,2020-03-09,11 SERVICES,GOVERNMENT SERVICES,FCO,439338,332.45,888813560
BEIS,Met Office,2020-03-26,03 STAFF COSTS T&S,GOVERNMENT SERVICES,FCO,440323,2329.86,888813560
BEIS,Met Office,2020-03-09,11 SERVICES,GOVERNMENT SERVICES,FCO,439338,2872.33,888813560
BEIS,Met Office,2020-03-04,11 SERVICES,GOVERNMENT SERVICES,GEOSMART INFORMATION LTD,439292,5833,172271519
BEIS,Met Office,2020-03-16,11 SERVICES,GOVERNMENT SERVICES,HOGAN LOVELLS INTERNATIONAL LLP,439164,25290.1,GB123371543
BEIS,Met Office,2020-03-16,11 SERVICES,GOVERNMENT SERVICES,HOGAN LOVELLS INTERNATIONAL LLP,439165,54940.32,GB123371543
BEIS,Met Office,2020-03-25,11 SERVICES,GOVERNMENT SERVICES,"IBL SOFTWARE ENGINEERING, SPOL S.R.O.",439482,4920.43,SK2020241883
BEIS,Met Office,2020-03-25,11 SERVICES,GOVERNMENT SERVICES,"IBL SOFTWARE ENGINEERING, SPOL S.R.O.",437331,5162.8,SK2020241883
BEIS,Met Office,2020-03-18,08 SOFTWARE LICENCES,GOVERNMENT SERVICES,"IBL SOFTWARE ENGINEERING, SPOL S.R.O.",21246,17853.79,SK2020241883
BEIS,Met Office,2020-03-18,08 SOFTWARE LICENCES,GOVERNMENT SERVICES,"IBL SOFTWARE ENGINEERING, SPOL S.R.O.",21246,37473.5,SK2020241883
BEIS,Met Office,2020-03-18,08 SOFTWARE LICENCES,GOVERNMENT SERVICES,"IBL SOFTWARE ENGINEERING, SPOL S.R.O.",21246,105000.96,SK2020241883
BEIS,Met Office,2020-03-18,08 SOFTWARE LICENCES,GOVERNMENT SERVICES,"IBL SOFTWARE ENGINEERING, SPOL S.R.O.",21246,143234.37,SK2020241883
BEIS,Met Office,2020-03-25,11 SERVICES,GOVERNMENT SERVICES,ICIMOD,9740,23269.14,-
BEIS,Met Office,2020-03-18,08 SOFTWARE LICENCES,GOVERNMENT SERVICES,"INTELLOVATIONS, LLC",9727,1432.18,-
BEIS,Met Office,2020-03-04,04 CONTRACTORS,GOVERNMENT SERVICES,JOBSEEKERS RECRUITMENT SERVICES LTD,439346,459.2,130 1297 14
BEIS,Met Office,2020-03-11,04 CONTRACTORS,GOVERNMENT SERVICES,JOBSEEKERS RECRUITMENT SERVICES LTD,439862,530.12,130 1297 14
BEIS,Met Office,2020-03-26,04 CONTRACTORS,GOVERNMENT SERVICES,JOBSEEKERS RECRUITMENT SERVICES LTD,440258,530.12,130 1297 14
BEIS,Met Office,2020-03-04,04 CONTRACTORS,GOVERNMENT SERVICES,JOBSEEKERS RECRUITMENT SERVICES LTD,439348,633.44,130 1297 14
BEIS,Met Office,2020-03-26,04 CONTRACTORS,GOVERNMENT SERVICES,JOBSEEKERS RECRUITMENT SERVICES LTD,440282,664.89,130 1297 14
BEIS,Met Office,2020-03-04,04 CONTRACTORS,GOVERNMENT SERVICES,JOBSEEKERS RECRUITMENT SERVICES LTD,439347,677.03,130 1297 14
BEIS,Met Office,2020-03-26,04 CONTRACTORS,GOVERNMENT SERVICES,JOBSEEKERS RECRUITMENT SERVICES LTD,440281,713,130 1297 14
BEIS,Met Office,2020-03-11,04 CONTRACTORS,GOVERNMENT SERVICES,JOBSEEKERS RECRUITMENT SERVICES LTD,439866,787.75,130 1297 14
BEIS,Met Office,2020-03-26,04 CONTRACTORS,GOVERNMENT SERVICES,JOBSEEKERS RECRUITMENT SERVICES LTD,440257,803.25,130 1297 14
BEIS,Met Office,2020-03-26,04 CONTRACTORS,GOVERNMENT SERVICES,JOBSEEKERS RECRUITMENT SERVICES LTD,440261,816.5,130 1297 14
BEIS,Met Office,2020-03-04,04 CONTRACTORS,GOVERNMENT SERVICES,JOBSEEKERS RECRUITMENT SERVICES LTD,439345,828,130 1297 14
BEIS,Met Office,2020-03-11,04 CONTRACTORS,GOVERNMENT SERVICES,JOBSEEKERS RECRUITMENT SERVICES LTD,439865,849.15,130 1297 14
BEIS,Met Office,2020-03-26,04 CONTRACTORS,GOVERNMENT SERVICES,JOBSEEKERS RECRUITMENT SERVICES LTD,440284,849.15,130 1297 14
BEIS,Met Office,2020-03-26,04 CONTRACTORS,GOVERNMENT SERVICES,JOBSEEKERS RECRUITMENT SERVICES LTD,440256,1029.71,130 1297 14
BEIS,Met Office,2020-03-26,04 CONTRACTORS,GOVERNMENT SERVICES,JOBSEEKERS RECRUITMENT SERVICES LTD,440260,1043.63,130 1297 14
BEIS,Met Office,2020-03-09,03 STAFF COSTS T&S,GOVERNMENT SERVICES,MAWASEM LTD,439316,8036.4,197694731
BEIS,Met Office,2020-03-26,13 MISCELLANEOUS,GOVERNMENT SERVICES,MILLS AND SONS LTD,440204,235.75,808366053
BEIS,Met Office,2020-03-26,13 MISCELLANEOUS,GOVERNMENT SERVICES,MILLS AND SONS LTD,440251,256.55,808366053
BEIS,Met Office,2020-03-12,11 SERVICES,GOVERNMENT SERVICES,MOUNT CHARLES GROUP LTD,439663,110,517116274
BEIS,Met Office,2020-03-12,11 SERVICES,GOVERNMENT SERVICES,MOUNT CHARLES GROUP LTD,439663,174.9,517116274
BEIS,Met Office,2020-03-12,11 SERVICES,GOVERNMENT SERVICES,MOUNT CHARLES GROUP LTD,439663,742.5,517116274
BEIS,Met Office,2020-03-06,11 SERVICES,GOVERNMENT SERVICES,MYACORN LTD,439535,18000,-
BEIS,Met Office,2020-03-26,11 SERVICES,GOVERNMENT SERVICES,NAVIGATOR RESEARCH PLANNING COMMUNICATION LTD,440259,9194.39,628317730
BEIS,Met Office,2020-03-26,11 SERVICES,GOVERNMENT SERVICES,OPTIMUS EDUCATION LTD,440294,250,311 6696 09
BEIS,Met Office,2020-03-26,11 SERVICES,GOVERNMENT SERVICES,OPTIMUS EDUCATION LTD,440294,2790,311 6696 09
BEIS,Met Office,2020-03-26,11 SERVICES,GOVERNMENT SERVICES,OXFORD SAID BUSINESS SCHOOL,440250,20833.33,GB125506730
BEIS,Met Office,2020-03-10,13 MISCELLANEOUS,GOVERNMENT SERVICES,PARLIAMENTARY & SCIENTIFIC COMMITTEE,439777,376,-
BEIS,Met Office,2020-03-26,11 SERVICES,GOVERNMENT SERVICES,PAUL WATKISS ASSOCIATES LTD,440304,5828.4,869587641
BEIS,Met Office,2020-03-11,11 SERVICES,GOVERNMENT SERVICES,REDACTED � PERSONAL DATA,439196,5200,-
BEIS,Met Office,2020-03-26,11 SERVICES,GOVERNMENT SERVICES,RESURGENCE URBAN RESILIENCE TRUST,440071,38560,259524184
BEIS,Met Office,2020-03-06,11 SERVICES,GOVERNMENT SERVICES,ROWE IT LTD,439546,1271.25,924964394
BEIS,Met Office,2020-03-09,11 SERVICES,GOVERNMENT SERVICES,ROWE IT LTD,439541,9520,924964394
BEIS,Met Office,2020-03-26,11 SERVICES,GOVERNMENT SERVICES,ROWE IT LTD,439509,10793.75,924964394
BEIS,Met Office,2020-03-09,11 SERVICES,GOVERNMENT SERVICES,ROWE IT LTD,439553,12775,924964394
BEIS,Met Office,2020-03-04,07 EQUIPMENT,GOVERNMENT SERVICES,RUNTIME COLLECTIVE LTD T/A BRANDWATCH,439309,2700,754750710
BEIS,Met Office,2020-03-09,04 CONTRACTORS,GOVERNMENT SERVICES,SOLOS CONSULTANTS LTD,439522,4788.11,812035476
BEIS,Met Office,2020-03-09,04 CONTRACTORS,GOVERNMENT SERVICES,SOLOS CONSULTANTS LTD,439529,8000,812035476
BEIS,Met Office,2020-03-06,04 CONTRACTORS,GOVERNMENT SERVICES,SOLOS CONSULTANTS LTD,439516,10920,812035476
BEIS,Met Office,2020-03-05,11 SERVICES,GOVERNMENT SERVICES,SOURCE COACHING CONSULTANCY,439272,1162.5,170422048
BEIS,Met Office,2020-03-11,13 MISCELLANEOUS,GOVERNMENT SERVICES,SPRINGER CUSTOMER SERVICE CENTER GMBH,21229,7726.3,209719094
BEIS,Met Office,2020-03-05,06 ACCOMMODATION,GOVERNMENT SERVICES,Trinity House,439421,35.48,243120414
BEIS,Met Office,2020-03-05,06 ACCOMMODATION,GOVERNMENT SERVICES,Trinity House,439421,2127.54,243120414
BEIS,Met Office,2020-03-26,11 SERVICES,GOVERNMENT SERVICES,UNIVERSITY OF CAMBRIDGE,437296,10000.01,214222124
BEIS,Met Office,2020-03-13,11 SERVICES,GOVERNMENT SERVICES,UNIVERSITY OF EXETER,439511,60000,142047795
BEIS,Met Office,2020-03-26,11 SERVICES,GOVERNMENT SERVICES,University Of Leeds,440154,1250,613451470
BEIS,Met Office,2020-03-17,11 SERVICES,GOVERNMENT SERVICES,University Of Leeds,439089,16000,613451470
BEIS,Met Office,2020-03-16,11 SERVICES,GOVERNMENT SERVICES,University Of Leeds,438272,34286,613451470
BEIS,Met Office,2020-03-12,11 SERVICES,GOVERNMENT SERVICES,University Of Leeds,438790,35000,613451470
BEIS,Met Office,2020-03-26,11 SERVICES,GOVERNMENT SERVICES,University Of Leeds,440313,47984,613451470
BEIS,Met Office,2020-03-11,11 SERVICES,GOVERNMENT SERVICES,University Of Leeds,439858,61326.8,613451470
BEIS,Met Office,2020-03-11,11 SERVICES,GOVERNMENT SERVICES,University Of Leeds,439869,61326.8,613451470
BEIS,Met Office,2020-03-26,11 SERVICES,GOVERNMENT SERVICES,UNIVERSITY OF OXFORD,440185,18033.36,125506730
BEIS,Met Office,2020-03-26,11 SERVICES,GOVERNMENT SERVICES,UNIVERSITY OF OXFORD,440358,72000,125506730
BEIS,Met Office,2020-03-13,11 SERVICES,GOVERNMENT SERVICES,University Of Reading,440019,5961.09,200012659
BEIS,Met Office,2020-03-03,11 SERVICES,GOVERNMENT SERVICES,University Of Reading,437614,50000,200012659
BEIS,Met Office,2020-03-26,11 SERVICES,GOVERNMENT SERVICES,University Of Reading,439300,82476,200012659
BEIS,Met Office,2020-03-13,11 SERVICES,GOVERNMENT SERVICES,University Of Reading,440019,113541.91,200012659
BEIS,Met Office,2020-03-02,04 CONTRACTORS,GOVERNMENT SERVICES,WA CONSULTANTS LTD,439176,1661,876328977
BEIS,Met Office,2020-03-02,04 CONTRACTORS,GOVERNMENT SERVICES,WA CONSULTANTS LTD,439175,5400,876328977
BEIS,Met Office,2020-03-04,11 SERVICES,GOVERNMENT SERVICES,World Meteorological Organization,438163,91094,-
BEIS,Met Office,2020-03-13,11 SERVICES,OPERATIONS,ACAS SOUTH WEST,439319,-5045,888809938
BEIS,Met Office,2020-03-02,11 SERVICES,OPERATIONS,ACAS SOUTH WEST,439190,2255,888809938
BEIS,Met Office,2020-03-16,11 SERVICES,OPERATIONS,ACAS SOUTH WEST,439959,2255,888809938
BEIS,Met Office,2020-03-16,11 SERVICES,OPERATIONS,ACAS SOUTH WEST,439960,2255,888809938
BEIS,Met Office,2020-03-16,11 SERVICES,OPERATIONS,ACAS SOUTH WEST,439961,2255,888809938
BEIS,Met Office,2020-03-16,11 SERVICES,OPERATIONS,ACAS SOUTH WEST,439964,2255,888809938
BEIS,Met Office,2020-03-02,11 SERVICES,OPERATIONS,ACAS SOUTH WEST,439191,2790,888809938
BEIS,Met Office,2020-03-02,11 SERVICES,OPERATIONS,ACAS SOUTH WEST,439189,7300,888809938
BEIS,Met Office,2020-03-17,04 CONTRACTORS,OPERATIONS,AFBI,440140,50,252677738
BEIS,Met Office,2020-03-11,03 STAFF COSTS T&S,OPERATIONS,AIRPORT CAR RENTALS LTD,439868,320,-
BEIS,Met Office,2020-03-26,12 INTERNATIONAL,OPERATIONS,APPLIED SATELLITE TECHNOLOGY SYSTEMS LTD,440332,33.62,720108683
BEIS,Met Office,2020-03-06,11 SERVICES,OPERATIONS,ASPIRE EUROPE LTD,439572,1250,841124953
BEIS,Met Office,2020-03-26,STOCK,OPERATIONS,ATLAS COPCO COMPRESSORS,439236,0,207546371
BEIS,Met Office,2020-03-26,11 SERVICES,OPERATIONS,ATLAS COPCO COMPRESSORS,439236,88.27,207546371
BEIS,Met Office,2020-03-26,STOCK,OPERATIONS,ATLAS COPCO COMPRESSORS,439236,4413.5,207546371
BEIS,Met Office,2020-03-11,11 SERVICES,OPERATIONS,"AXYS TECHNOLOGIES, INC",9717,115.07,-
BEIS,Met Office,2020-03-25,11 SERVICES,OPERATIONS,"AXYS TECHNOLOGIES, INC",9744,128.88,-
BEIS,Met Office,2020-03-25,11 SERVICES,OPERATIONS,BENTLEY WALKER LTD,9235,-6038.35,107995930
BEIS,Met Office,2020-03-25,07 EQUIPMENT,OPERATIONS,BENTLEY WALKER LTD,9720,17.03,107995930
BEIS,Met Office,2020-03-25,07 EQUIPMENT,OPERATIONS,BENTLEY WALKER LTD,9720,54.19,107995930
BEIS,Met Office,2020-03-25,07 EQUIPMENT,OPERATIONS,BENTLEY WALKER LTD,9720,503.2,107995930
BEIS,Met Office,2020-03-25,07 EQUIPMENT,OPERATIONS,BENTLEY WALKER LTD,9720,4765.66,107995930
BEIS,Met Office,2020-03-25,11 SERVICES,OPERATIONS,BENTLEY WALKER LTD,9314,4905.85,107995930
BEIS,Met Office,2020-03-05,11 SERVICES,OPERATIONS,BOC LTD,439331,12350.81,226556555
BEIS,Met Office,2020-03-17,10 EQUIPMENT MAINTENANCE,OPERATIONS,C K COMMERCIALS LTD,440176,600,456211956
BEIS,Met Office,2020-03-17,10 EQUIPMENT MAINTENANCE,OPERATIONS,C K COMMERCIALS LTD,440175,1200,456211956
BEIS,Met Office,2020-03-26,07 EQUIPMENT,OPERATIONS,Campbell Scientific Ltd,440150,31,428453933
BEIS,Met Office,2020-03-26,07 EQUIPMENT,OPERATIONS,Campbell Scientific Ltd,440169,31,428453933
BEIS,Met Office,2020-03-26,07 EQUIPMENT,OPERATIONS,Campbell Scientific Ltd,440170,31,428453933
BEIS,Met Office,2020-03-26,07 EQUIPMENT,OPERATIONS,Campbell Scientific Ltd,440171,31,428453933
BEIS,Met Office,2020-03-26,07 EQUIPMENT,OPERATIONS,Campbell Scientific Ltd,440173,31,428453933
BEIS,Met Office,2020-03-26,07 EQUIPMENT,OPERATIONS,Campbell Scientific Ltd,440151,44,428453933
BEIS,Met Office,2020-03-26,07 EQUIPMENT,OPERATIONS,Campbell Scientific Ltd,440152,49,428453933
BEIS,Met Office,2020-03-26,07 EQUIPMENT,OPERATIONS,Campbell Scientific Ltd,440149,123.3,428453933
BEIS,Met Office,2020-03-26,07 EQUIPMENT,OPERATIONS,Campbell Scientific Ltd,440150,123.3,428453933
BEIS,Met Office,2020-03-26,07 EQUIPMENT,OPERATIONS,Campbell Scientific Ltd,440151,123.3,428453933
BEIS,Met Office,2020-03-26,07 EQUIPMENT,OPERATIONS,Campbell Scientific Ltd,440152,123.3,428453933
BEIS,Met Office,2020-03-26,07 EQUIPMENT,OPERATIONS,Campbell Scientific Ltd,440169,123.3,428453933
BEIS,Met Office,2020-03-26,07 EQUIPMENT,OPERATIONS,Campbell Scientific Ltd,440170,123.3,428453933
BEIS,Met Office,2020-03-26,07 EQUIPMENT,OPERATIONS,Campbell Scientific Ltd,440171,123.3,428453933
BEIS,Met Office,2020-03-26,07 EQUIPMENT,OPERATIONS,Campbell Scientific Ltd,440173,123.3,428453933
BEIS,Met Office,2020-03-26,07 EQUIPMENT,OPERATIONS,Campbell Scientific Ltd,440149,124,428453933
BEIS,Met Office,2020-03-26,07 EQUIPMENT,OPERATIONS,Campbell Scientific Ltd,440149,124.2,428453933
BEIS,Met Office,2020-03-26,07 EQUIPMENT,OPERATIONS,Campbell Scientific Ltd,440150,124.2,428453933
BEIS,Met Office,2020-03-26,07 EQUIPMENT,OPERATIONS,Campbell Scientific Ltd,440151,124.2,428453933
BEIS,Met Office,2020-03-26,07 EQUIPMENT,OPERATIONS,Campbell Scientific Ltd,440152,124.2,428453933
BEIS,Met Office,2020-03-26,07 EQUIPMENT,OPERATIONS,Campbell Scientific Ltd,440169,124.2,428453933
BEIS,Met Office,2020-03-26,07 EQUIPMENT,OPERATIONS,Campbell Scientific Ltd,440170,124.2,428453933
BEIS,Met Office,2020-03-26,07 EQUIPMENT,OPERATIONS,Campbell Scientific Ltd,440171,124.2,428453933
BEIS,Met Office,2020-03-26,07 EQUIPMENT,OPERATIONS,Campbell Scientific Ltd,440173,124.2,428453933
BEIS,Met Office,2020-03-26,07 EQUIPMENT,OPERATIONS,Campbell Scientific Ltd,440149,182.7,428453933
BEIS,Met Office,2020-03-26,07 EQUIPMENT,OPERATIONS,Campbell Scientific Ltd,440150,182.7,428453933
BEIS,Met Office,2020-03-26,07 EQUIPMENT,OPERATIONS,Campbell Scientific Ltd,440151,182.7,428453933
BEIS,Met Office,2020-03-26,07 EQUIPMENT,OPERATIONS,Campbell Scientific Ltd,440152,182.7,428453933
BEIS,Met Office,2020-03-26,07 EQUIPMENT,OPERATIONS,Campbell Scientific Ltd,440169,182.7,428453933
BEIS,Met Office,2020-03-26,07 EQUIPMENT,OPERATIONS,Campbell Scientific Ltd,440170,182.7,428453933
BEIS,Met Office,2020-03-26,07 EQUIPMENT,OPERATIONS,Campbell Scientific Ltd,440171,182.7,428453933
BEIS,Met Office,2020-03-26,07 EQUIPMENT,OPERATIONS,Campbell Scientific Ltd,440173,182.7,428453933
BEIS,Met Office,2020-03-26,07 EQUIPMENT,OPERATIONS,Campbell Scientific Ltd,440149,485.7,428453933
BEIS,Met Office,2020-03-02,07 EQUIPMENT,OPERATIONS,Campbell Scientific Ltd,432029,493.2,428453933
BEIS,Met Office,2020-03-26,07 EQUIPMENT,OPERATIONS,Campbell Scientific Ltd,440149,547.2,428453933
BEIS,Met Office,2020-03-26,07 EQUIPMENT,OPERATIONS,Campbell Scientific Ltd,440150,547.2,428453933
BEIS,Met Office,2020-03-26,07 EQUIPMENT,OPERATIONS,Campbell Scientific Ltd,440151,547.2,428453933
BEIS,Met Office,2020-03-26,07 EQUIPMENT,OPERATIONS,Campbell Scientific Ltd,440152,547.2,428453933
BEIS,Met Office,2020-03-26,07 EQUIPMENT,OPERATIONS,Campbell Scientific Ltd,440169,547.2,428453933
BEIS,Met Office,2020-03-26,07 EQUIPMENT,OPERATIONS,Campbell Scientific Ltd,440170,547.2,428453933
BEIS,Met Office,2020-03-26,07 EQUIPMENT,OPERATIONS,Campbell Scientific Ltd,440171,547.2,428453933
BEIS,Met Office,2020-03-26,07 EQUIPMENT,OPERATIONS,Campbell Scientific Ltd,440173,547.2,428453933
BEIS,Met Office,2020-03-26,07 EQUIPMENT,OPERATIONS,Campbell Scientific Ltd,440150,578.7,428453933
BEIS,Met Office,2020-03-26,07 EQUIPMENT,OPERATIONS,Campbell Scientific Ltd,440151,578.7,428453933
BEIS,Met Office,2020-03-26,07 EQUIPMENT,OPERATIONS,Campbell Scientific Ltd,440152,578.7,428453933
BEIS,Met Office,2020-03-26,07 EQUIPMENT,OPERATIONS,Campbell Scientific Ltd,440169,578.7,428453933
BEIS,Met Office,2020-03-26,07 EQUIPMENT,OPERATIONS,Campbell Scientific Ltd,440170,578.7,428453933
BEIS,Met Office,2020-03-26,07 EQUIPMENT,OPERATIONS,Campbell Scientific Ltd,440171,578.7,428453933
BEIS,Met Office,2020-03-26,07 EQUIPMENT,OPERATIONS,Campbell Scientific Ltd,440173,578.7,428453933
BEIS,Met Office,2020-03-02,07 EQUIPMENT,OPERATIONS,Campbell Scientific Ltd,432029,730.8,428453933
BEIS,Met Office,2020-03-26,07 EQUIPMENT,OPERATIONS,Campbell Scientific Ltd,440149,934.2,428453933
BEIS,Met Office,2020-03-26,07 EQUIPMENT,OPERATIONS,Campbell Scientific Ltd,440150,934.2,428453933
BEIS,Met Office,2020-03-26,07 EQUIPMENT,OPERATIONS,Campbell Scientific Ltd,440151,934.2,428453933
BEIS,Met Office,2020-03-26,07 EQUIPMENT,OPERATIONS,Campbell Scientific Ltd,440152,934.2,428453933
BEIS,Met Office,2020-03-26,07 EQUIPMENT,OPERATIONS,Campbell Scientific Ltd,440169,934.2,428453933
BEIS,Met Office,2020-03-26,07 EQUIPMENT,OPERATIONS,Campbell Scientific Ltd,440170,934.2,428453933
BEIS,Met Office,2020-03-26,07 EQUIPMENT,OPERATIONS,Campbell Scientific Ltd,440171,934.2,428453933
BEIS,Met Office,2020-03-26,07 EQUIPMENT,OPERATIONS,Campbell Scientific Ltd,440173,934.2,428453933
BEIS,Met Office,2020-03-26,07 EQUIPMENT,OPERATIONS,Campbell Scientific Ltd,440149,1316.88,428453933
BEIS,Met Office,2020-03-26,07 EQUIPMENT,OPERATIONS,Campbell Scientific Ltd,440150,1316.88,428453933
BEIS,Met Office,2020-03-26,07 EQUIPMENT,OPERATIONS,Campbell Scientific Ltd,440151,1316.88,428453933
BEIS,Met Office,2020-03-26,07 EQUIPMENT,OPERATIONS,Campbell Scientific Ltd,440152,1316.88,428453933
BEIS,Met Office,2020-03-26,07 EQUIPMENT,OPERATIONS,Campbell Scientific Ltd,440169,1316.88,428453933
BEIS,Met Office,2020-03-26,07 EQUIPMENT,OPERATIONS,Campbell Scientific Ltd,440170,1316.88,428453933
BEIS,Met Office,2020-03-26,07 EQUIPMENT,OPERATIONS,Campbell Scientific Ltd,440171,1316.88,428453933
BEIS,Met Office,2020-03-26,07 EQUIPMENT,OPERATIONS,Campbell Scientific Ltd,440173,1316.88,428453933
BEIS,Met Office,2020-03-10,03 STAFF COSTS T&S,OPERATIONS,CARTUS FINANCING LTD,439579,37.05,768489458
BEIS,Met Office,2020-03-02,03 STAFF COSTS T&S,OPERATIONS,CARTUS LTD,436574,-90,768489458
BEIS,Met Office,2020-03-10,03 STAFF COSTS T&S,OPERATIONS,CARTUS LTD,439754,137,768489458
BEIS,Met Office,2020-03-02,03 STAFF COSTS T&S,OPERATIONS,CARTUS LTD,439179,155,768489458
BEIS,Met Office,2020-03-02,03 STAFF COSTS T&S,OPERATIONS,CARTUS LTD,436577,1394.67,768489458
BEIS,Met Office,2020-03-10,03 STAFF COSTS T&S,OPERATIONS,CARTUS LTD,439746,1438.35,768489458
BEIS,Met Office,2020-03-10,03 STAFF COSTS T&S,OPERATIONS,CARTUS LTD,439744,3821.83,768489458
BEIS,Met Office,2020-03-16,11 SERVICES,OPERATIONS,CATALYST IT,439259,1236.67,978169262
BEIS,Met Office,2020-03-04,03 STAFF COSTS T&S,OPERATIONS,CHARLIE'S TRAVEL LTD,439349,659.5,783848277
BEIS,Met Office,2020-03-10,05 CONSULTANTS,OPERATIONS,CMC PARTNERSHIP CONSULTANCY LTD,439512,8468,305803330
BEIS,Met Office,2020-03-13,03 STAFF COSTS T&S,OPERATIONS,DBS FINANCE RECEIPTS CTS,439896,1606,888805068
BEIS,Met Office,2020-03-26,03 STAFF COSTS T&S,OPERATIONS,DBS FINANCE RECEIPTS CTS,440290,4807,888805068
BEIS,Met Office,2020-03-13,03 STAFF COSTS T&S,OPERATIONS,DBS FINANCE RECEIPTS CTS,439900,5610,888805068
BEIS,Met Office,2020-03-05,03 STAFF COSTS T&S,OPERATIONS,DBS FINANCE RECEIPTS CTS,439408,6402,888805068
BEIS,Met Office,2020-03-05,03 STAFF COSTS T&S,OPERATIONS,DBS FINANCE RECEIPTS CTS,439407,7246,888805068
BEIS,Met Office,2020-03-26,07 EQUIPMENT,OPERATIONS,DSG RETAIL LTD T/A DSGI BUSINESS,440155,1665.67,226659933
BEIS,Met Office,2020-03-17,04 CONTRACTORS,OPERATIONS,EAST LOTHIAN COUNCIL - GENERAL FUND,440145,150,-
BEIS,Met Office,2020-03-18,12 INTERNATIONAL,OPERATIONS,ECMWF,440013,7114338,NOTVATREG
BEIS,Met Office,2020-03-18,11 SERVICES,OPERATIONS,"EUTELSAT MADERIA, UNIPESSOAL LDA",21252,2177.36,PT511283733
BEIS,Met Office,2020-03-04,11 SERVICES,OPERATIONS,"EUTELSAT, S.A.",21224,2899.02,-
BEIS,Met Office,2020-03-04,11 SERVICES,OPERATIONS,"EUTELSAT, S.A.",21223,3614.44,-
BEIS,Met Office,2020-03-26,03 STAFF COSTS T&S,OPERATIONS,FALKLAND ISLAND COMPANY LTD,440272,700,N/A
BEIS,Met Office,2020-03-26,03 STAFF COSTS T&S,OPERATIONS,FALKLAND ISLAND COMPANY LTD,440273,700,N/A
BEIS,Met Office,2020-03-26,03 STAFF COSTS T&S,OPERATIONS,FALKLAND ISLAND COMPANY LTD,440274,700,N/A
BEIS,Met Office,2020-03-25,STOCK,OPERATIONS,FEINGERATEBAU K. FISCHER GMBH,21269,0,DE141292589
BEIS,Met Office,2020-03-25,11 SERVICES,OPERATIONS,FEINGERATEBAU K. FISCHER GMBH,21269,33.51,DE141292589
BEIS,Met Office,2020-03-25,STOCK,OPERATIONS,FEINGERATEBAU K. FISCHER GMBH,21269,804.26,DE141292589
BEIS,Met Office,2020-03-26,04 CONTRACTORS,OPERATIONS,HAYS SPECIALIST RECRUITMENT LTD,440308,366.15,773695871
BEIS,Met Office,2020-03-26,04 CONTRACTORS,OPERATIONS,HAYS SPECIALIST RECRUITMENT LTD,440309,366.15,773695871
BEIS,Met Office,2020-03-26,04 CONTRACTORS,OPERATIONS,HAYS SPECIALIST RECRUITMENT LTD,440310,366.16,773695871
BEIS,Met Office,2020-03-04,PLANT AND EQUIPMENT,OPERATIONS,Hydrosphere UK Limited,439342,151216,641275549
BEIS,Met Office,2020-03-02,12 INTERNATIONAL,OPERATIONS,IDEMS INTERNATIONAL COMMUNITY INTEREST CO,439181,17000,-
BEIS,Met Office,2020-03-05,11 SERVICES,OPERATIONS,IDESIGN INTERNATIONAL LTD,439067,1794.88,235 9996 49
BEIS,Met Office,2020-03-16,06 ACCOMMODATION,OPERATIONS,INMARSAT SOLUTIONS (CANADA) INC,439903,175,766144223
BEIS,Met Office,2020-03-26,06 ACCOMMODATION,OPERATIONS,INMARSAT SOLUTIONS (CANADA) INC,435001,875.23,766144223
BEIS,Met Office,2020-03-09,11 SERVICES,OPERATIONS,INMARSAT SOLUTIONS (CANADA) INC,439493,968.79,766144223
BEIS,Met Office,2020-03-12,11 SERVICES,OPERATIONS,ISOTHERMAL TECHNOLOGY LTD,439965,15,325108979
BEIS,Met Office,2020-03-11,07 EQUIPMENT,OPERATIONS,ISOTHERMAL TECHNOLOGY LTD,439875,750,325108979
BEIS,Met Office,2020-03-12,10 EQUIPMENT MAINTENANCE,OPERATIONS,ISOTHERMAL TECHNOLOGY LTD,439965,812,325108979
BEIS,Met Office,2020-03-11,07 EQUIPMENT,OPERATIONS,ISOTHERMAL TECHNOLOGY LTD,439875,2562,325108979
BEIS,Met Office,2020-03-04,04 CONTRACTORS,OPERATIONS,JOBSEEKERS RECRUITMENT SERVICES LTD,439344,403.16,130 1297 14
BEIS,Met Office,2020-03-26,04 CONTRACTORS,OPERATIONS,JOBSEEKERS RECRUITMENT SERVICES LTD,440285,569.16,130 1297 14
BEIS,Met Office,2020-03-11,04 CONTRACTORS,OPERATIONS,JOBSEEKERS RECRUITMENT SERVICES LTD,439864,671.93,130 1297 14
BEIS,Met Office,2020-03-26,04 CONTRACTORS,OPERATIONS,JOBSEEKERS RECRUITMENT SERVICES LTD,440255,758.88,130 1297 14
BEIS,Met Office,2020-03-12,11 SERVICES,OPERATIONS,KCOM GROUP PLC,439305,955.72,647235137
BEIS,Met Office,2020-03-02,07 EQUIPMENT,OPERATIONS,LANKHORST ROPES UK LTD,438998,480,619244831
BEIS,Met Office,2020-03-02,PLANT AND EQUIPMENT,OPERATIONS,LANKHORST ROPES UK LTD,438998,5280,619244831
BEIS,Met Office,2020-03-02,PLANT AND EQUIPMENT,OPERATIONS,LANKHORST ROPES UK LTD,438998,5280,619244831
BEIS,Met Office,2020-03-02,07 EQUIPMENT,OPERATIONS,LANKHORST ROPES UK LTD,438998,10560,619244831
BEIS,Met Office,2020-03-04,11 SERVICES,OPERATIONS,LEARNING TREE INTERNATIONAL LTD,438726,4885,245335568
BEIS,Met Office,2020-03-10,11 SERVICES,OPERATIONS,LONGITUDE CONSULTING ENGINEERS LTD,439596,4690,GB 7264 24244
BEIS,Met Office,2020-04-01,STOCK,OPERATIONS,METSPEC LTD,440263,0,738825202
BEIS,Met Office,2020-04-01,11 SERVICES,OPERATIONS,METSPEC LTD,440263,204,738825202
BEIS,Met Office,2020-04-01,STOCK,OPERATIONS,METSPEC LTD,440263,15510,738825202
BEIS,Met Office,2020-03-02,11 SERVICES,OPERATIONS,MOMENTUM INCORPORATED,439184,13320,598958541
BEIS,Met Office,2020-03-10,10 EQUIPMENT MAINTENANCE,OPERATIONS,MSL MACHINE MOVERS LTD,439743,1296,183813885
BEIS,Met Office,2020-03-26,12 INTERNATIONAL,OPERATIONS,MYACORN LTD,440248,225.31,-
BEIS,Met Office,2020-03-26,12 INTERNATIONAL,OPERATIONS,MYACORN LTD,440248,5000,-
BEIS,Met Office,2020-03-10,12 INTERNATIONAL,OPERATIONS,National Oceanography Centre,439780,6000,GB 338 5487 64
BEIS,Met Office,2020-03-11,10 EQUIPMENT MAINTENANCE,OPERATIONS,NPL Management Ltd,439898,2174,207523388
BEIS,Met Office,2020-03-18,11 SERVICES,OPERATIONS,NSSL GLOBAL LTD,9705,46.03,725151948
BEIS,Met Office,2020-03-18,11 SERVICES,OPERATIONS,NSSL GLOBAL LTD,9706,46.03,725151948
BEIS,Met Office,2020-03-03,11 SERVICES,OPERATIONS,OLD FROG LTD,439315,2820,642591532
BEIS,Met Office,2020-03-05,11 SERVICES,OPERATIONS,OLD FROG LTD,439537,2820,642591532
BEIS,Met Office,2020-03-16,11 SERVICES,OPERATIONS,OLD FROG LTD,440074,2820,642591532
BEIS,Met Office,2020-03-26,11 SERVICES,OPERATIONS,OLD FROG LTD,440311,2820,642591532
BEIS,Met Office,2020-03-26,11 SERVICES,OPERATIONS,OLD FROG LTD,440311,2820,642591532
BEIS,Met Office,2020-03-03,04 CONTRACTORS,OPERATIONS,OUTSOURCE UK LIMITED,439244,2010.85,576118722
BEIS,Met Office,2020-03-10,04 CONTRACTORS,OPERATIONS,OUTSOURCE UK LIMITED,439721,9935.52,576118722
BEIS,Met Office,2020-03-09,04 CONTRACTORS,OPERATIONS,OUTSOURCE UK LIMITED,439592,10687.5,576118722
BEIS,Met Office,2020-03-04,PLANT AND EQUIPMENT,OPERATIONS,RAISE TELECOMS LTD,438944,2437.5,166016521
BEIS,Met Office,2020-03-26,10 EQUIPMENT MAINTENANCE,OPERATIONS,RAISE TELECOMS LTD,440148,14432.6,166016521
BEIS,Met Office,2020-03-17,04 CONTRACTORS,OPERATIONS,REDACTED � PERSONAL DATA,440147,200,-
BEIS,Met Office,2020-03-17,04 CONTRACTORS,OPERATIONS,REDACTED � PERSONAL DATA,440106,1893.34,267253251
BEIS,Met Office,2020-03-11,12 INTERNATIONAL,OPERATIONS,REDACTED � PERSONAL DATA,9728,2709.52,-
BEIS,Met Office,2020-03-06,11 SERVICES,OPERATIONS,ROWE IT LTD,439507,4080,924964394
BEIS,Met Office,2020-03-09,11 SERVICES,OPERATIONS,ROWE IT LTD,439549,16310,924964394
BEIS,Met Office,2020-03-06,11 SERVICES,OPERATIONS,ROWE IT LTD,439508,26917.5,924964394
BEIS,Met Office,2020-03-02,07 EQUIPMENT,OPERATIONS,SENSING DEVICES LTD,439238,15.5,163684738
BEIS,Met Office,2020-03-02,07 EQUIPMENT,OPERATIONS,SENSING DEVICES LTD,439238,1854.2,163684738
BEIS,Met Office,2020-03-03,11 SERVICES,OPERATIONS,SKILLTEC LIMITED,436447,695,909833105
BEIS,Met Office,2020-03-03,11 SERVICES,OPERATIONS,SKILLTEC LIMITED,436448,695,909833105
BEIS,Met Office,2020-03-10,11 SERVICES,OPERATIONS,SOFTCAT LTD,439720,160.62,491848503
BEIS,Met Office,2020-03-02,08 SOFTWARE LICENCES,OPERATIONS,SOFTWAREONE,438815,62605.2,GB 942 5301 43
BEIS,Met Office,2020-03-05,11 SERVICES,OPERATIONS,SOFTWIRE TECHNOLOGY LIMITED,439481,2520,752 1253 57
BEIS,Met Office,2020-03-09,04 CONTRACTORS,OPERATIONS,SOLOS CONSULTANTS LTD,439524,6452.78,812035476
BEIS,Met Office,2020-03-09,04 CONTRACTORS,OPERATIONS,SOLOS CONSULTANTS LTD,439556,8904,812035476
BEIS,Met Office,2020-03-09,04 CONTRACTORS,OPERATIONS,SOLOS CONSULTANTS LTD,439562,8978.38,812035476
BEIS,Met Office,2020-03-05,12 INTERNATIONAL,OPERATIONS,SWANTECH LOGISTICS LTD,439412,339.78,769332401
BEIS,Met Office,2020-03-16,12 INTERNATIONAL,OPERATIONS,SWANTECH LOGISTICS LTD,439985,870,769332401
BEIS,Met Office,2020-03-16,12 INTERNATIONAL,OPERATIONS,SWANTECH LOGISTICS LTD,439985,870,769332401
BEIS,Met Office,2020-03-05,12 INTERNATIONAL,OPERATIONS,SWANTECH LOGISTICS LTD,439411,957.87,769332401
BEIS,Met Office,2020-03-09,12 INTERNATIONAL,OPERATIONS,SWANTECH LOGISTICS LTD,439413,8618.37,769332401
BEIS,Met Office,2020-03-09,12 INTERNATIONAL,OPERATIONS,SWANTECH LOGISTICS LTD,439413,8618.37,769332401
BEIS,Met Office,2020-03-13,12 INTERNATIONAL,OPERATIONS,TRIPOS CONSULTANTS,439974,5255.42,610652671
BEIS,Met Office,2020-03-05,07 EQUIPMENT,OPERATIONS,UKPOWERTECH,439304,12064,GB756124336
BEIS,Met Office,2020-03-06,11 SERVICES,OPERATIONS,UNIVERSITY OF CHESTER,439544,421.2,189131784
BEIS,Met Office,2020-03-04,11 SERVICES,OPERATIONS,UNIVERSITY OF CHESTER,439352,4212,189131784
BEIS,Met Office,2020-03-26,11 SERVICES,OPERATIONS,VAISALA LTD,440179,632.5,336100011
BEIS,Met Office,2020-03-26,11 SERVICES,OPERATIONS,VAISALA LTD,440179,11766,336100011
BEIS,Met Office,2020-03-05,04 CONTRACTORS,OPERATIONS,WA CONSULTANTS LTD,439473,18000,876328977
BEIS,Met Office,2020-03-04,11 SERVICES,OPERATIONS,WORLDPAY LTD,439382,21.55,991280207
BEIS,Met Office,2020-03-10,11 SERVICES,OPERATIONS,WORLDPAY LTD,439582,416.13,991280207
BEIS,Met Office,2020-03-10,11 SERVICES,OPERATIONS,WORLDPAY LTD,439581,583.7,991280207
BEIS,Met Office,2020-03-10,11 SERVICES,OPERATIONS,WORLDPAY LTD,439586,673.51,991280207
BEIS,Met Office,2020-03-10,11 SERVICES,OPERATIONS,WORLDPAY LTD,439583,698.43,991280207
BEIS,Met Office,2020-03-10,11 SERVICES,OPERATIONS,WORLDPAY LTD,439584,988.81,991280207
BEIS,Met Office,2020-03-10,11 SERVICES,OPERATIONS,WORLDPAY LTD,439585,1261.57,991280207
BEIS,Met Office,2020-03-02,CYCLESCHEME,OTHER,CYCLESCHEME LTD,439078,833.33,850403556
BEIS,Met Office,2020-03-12,PAYE AND VAT,OTHER,SOLOS CONSULTANTS LTD,440010,0,812035476
BEIS,Met Office,2020-03-12,08 SOFTWARE LICENCES,OTHER,TIMEWATCH PLC,439859,229.17,461555250
BEIS,Met Office,2020-03-12,08 SOFTWARE LICENCES,OTHER,TIMEWATCH PLC,439859,2750,461555250
BEIS,Met Office,2020-03-13,08 SOFTWARE LICENCES,OTHER,TIMEWATCH PLC,439954,2750,461555250
BEIS,Met Office,2020-03-17,08 SOFTWARE LICENCES,OTHER,TIMEWATCH PLC,439956,2750,461555250
BEIS,Met Office,2020-03-13,08 SOFTWARE LICENCES,OTHER,TIMEWATCH PLC,439957,2750,461555250
BEIS,Met Office,2020-03-13,08 SOFTWARE LICENCES,OTHER,TIMEWATCH PLC,439955,5500,461555250
BEIS,Met Office,2020-03-17,08 SOFTWARE LICENCES,OTHER,TIMEWATCH PLC,439953,7200,461555250
BEIS,Met Office,2020-03-17,08 SOFTWARE LICENCES,OTHER,TIMEWATCH PLC,439953,145200,461555250
BEIS,Met Office,2020-03-18,11 SERVICES,SCIENCE,Bureau Of Meteorology,439904,149.53,-
BEIS,Met Office,2020-03-18,11 SERVICES,SCIENCE,Bureau Of Meteorology,439905,1588.87,-
BEIS,Met Office,2020-03-06,11 SERVICES,SCIENCE,CRANFIELD AEROSPACE SOLUTIONS LTD,439595,51043,608596509
BEIS,Met Office,2020-03-25,11 SERVICES,SCIENCE,Environment Canada,439182,529.2,-
BEIS,Met Office,2020-03-18,12 INTERNATIONAL,SCIENCE,EUROGOOS AISBL,21238,9976.97,0521.723.012
BEIS,Met Office,2020-03-25,11 SERVICES,SCIENCE,FCIENCIAS:ID,21254,3351.07,514187808
BEIS,Met Office,2020-03-25,11 SERVICES,SCIENCE,FCIENCIAS:ID,21255,22969.46,514187808
BEIS,Met Office,2020-03-18,07 EQUIPMENT,SCIENCE,GRIMM AEROSOL TECHNIK GMBH & CO KG,21232,25.49,DE128993085
BEIS,Met Office,2020-03-18,07 EQUIPMENT,SCIENCE,GRIMM AEROSOL TECHNIK GMBH & CO KG,21232,1360.37,DE128993085
BEIS,Met Office,2020-03-10,07 EQUIPMENT,SCIENCE,HALO PHOTONICS LTD,439728,6250,875836960
BEIS,Met Office,2020-03-02,04 CONTRACTORS,SCIENCE,HAYS SPECIALIST RECRUITMENT LTD,439222,573.8,773695871
BEIS,Met Office,2020-03-04,13 MISCELLANEOUS,SCIENCE,IMPERIAL COLLEGE,439310,333,649926678
BEIS,Met Office,2020-03-06,11 SERVICES,SCIENCE,MERCURE SOUTHGATE,439312,106.67,845619305
BEIS,Met Office,2020-03-06,11 SERVICES,SCIENCE,MERCURE SOUTHGATE,438021,8368.2,845619305
BEIS,Met Office,2020-03-26,11 SERVICES,SCIENCE,REDACTED � PERSONAL DATA,440249,1000,-
BEIS,Met Office,2020-03-18,11 SERVICES,SCIENCE,SCIENCE & TECHNOLOGY FACILITIES COUNCIL,440178,37500,618367325
BEIS,Met Office,2020-03-04,11 SERVICES,SCIENCE,SCIENCE & TECHNOLOGY FACILITIES COUNCIL,439356,37616,618367325
BEIS,Met Office,2020-03-03,13 MISCELLANEOUS,SCIENCE,University Of Birmingham,439314,2000,729856187
BEIS,Met Office,2020-03-17,11 SERVICES,SCIENCE,University Of Leeds,440180,-3000,613451470
BEIS,Met Office,2020-03-17,11 SERVICES,SCIENCE,University Of Leeds,439813,3000,613451470
BEIS,Met Office,2020-03-12,11 SERVICES,SCIENCE,University Of Leeds,439815,12000,613451470
BEIS,Met Office,2020-03-16,13 MISCELLANEOUS,SCIENCE,University Of Reading,433165,1812.5,200012659
BEIS,Met Office,2020-03-09,04 CONTRACTORS,SCIENCE,WA CONSULTANTS LTD,439519,1090,876328977
BEIS,Met Office,2020-03-09,04 CONTRACTORS,SCIENCE,WA CONSULTANTS LTD,439520,5450,876328977
BEIS,Met Office,2020-03-09,04 CONTRACTORS,SCIENCE,WA CONSULTANTS LTD,439570,10355,876328977
BEIS,Met Office,2020-03-16,11 SERVICES,STRATEGIC INVESTMENT,ADVANTAGE MARKET INTELLIGENCE LTD,440023,4400,191125622
BEIS,Met Office,2020-03-05,11 SERVICES,STRATEGIC INVESTMENT,CACI LTD,439494,61877.25,380609841
BEIS,Met Office,2020-03-09,INFORMATION TECHNOLOGY,STRATEGIC INVESTMENT,Campbell Scientific Ltd,439299,108,428453933
BEIS,Met Office,2020-03-02,11 SERVICES,STRATEGIC INVESTMENT,Campbell Scientific Ltd,432029,149,428453933
BEIS,Met Office,2020-03-02,INFORMATION TECHNOLOGY,STRATEGIC INVESTMENT,Campbell Scientific Ltd,432029,496.8,428453933
BEIS,Met Office,2020-03-09,11 SERVICES,STRATEGIC INVESTMENT,Campbell Scientific Ltd,439299,935.55,428453933
BEIS,Met Office,2020-03-02,11 SERVICES,STRATEGIC INVESTMENT,Campbell Scientific Ltd,432029,1098,428453933
BEIS,Met Office,2020-03-02,INFORMATION TECHNOLOGY,STRATEGIC INVESTMENT,Campbell Scientific Ltd,432029,1436.4,428453933
BEIS,Met Office,2020-03-09,INFORMATION TECHNOLOGY,STRATEGIC INVESTMENT,Campbell Scientific Ltd,439297,1701,428453933
BEIS,Met Office,2020-03-02,INFORMATION TECHNOLOGY,STRATEGIC INVESTMENT,Campbell Scientific Ltd,432029,2188.8,428453933
BEIS,Met Office,2020-03-09,INFORMATION TECHNOLOGY,STRATEGIC INVESTMENT,Campbell Scientific Ltd,439299,2810.7,428453933
BEIS,Met Office,2020-03-02,INFORMATION TECHNOLOGY,STRATEGIC INVESTMENT,Campbell Scientific Ltd,432029,3747.6,428453933
BEIS,Met Office,2020-03-09,INFORMATION TECHNOLOGY,STRATEGIC INVESTMENT,Campbell Scientific Ltd,439299,4016.58,428453933
BEIS,Met Office,2020-03-02,INFORMATION TECHNOLOGY,STRATEGIC INVESTMENT,Campbell Scientific Ltd,432029,5267.5,428453933
BEIS,Met Office,2020-03-03,11 SERVICES,STRATEGIC INVESTMENT,Campbell Scientific Ltd,439180,15952.5,428453933
BEIS,Met Office,2020-03-16,11 SERVICES,STRATEGIC INVESTMENT,CIPHR,440077,-39000,242661124
BEIS,Met Office,2020-03-16,11 SERVICES,STRATEGIC INVESTMENT,CIPHR,439381,39000,242661124
BEIS,Met Office,2020-03-16,11 SERVICES,STRATEGIC INVESTMENT,CIPHR,440076,39000,242661124
BEIS,Met Office,2020-03-26,11 SERVICES,STRATEGIC INVESTMENT,ELASTICSEARCH LTD,439393,1371.59,155790484
BEIS,Met Office,2020-03-13,05 CONSULTANTS,STRATEGIC INVESTMENT,Ernst & Young Llp,439808,62968,773831408
BEIS,Met Office,2020-03-04,11 SERVICES,STRATEGIC INVESTMENT,FLYFORM LTD,439340,9950,237333808
BEIS,Met Office,2020-03-13,04 CONTRACTORS,STRATEGIC INVESTMENT,HAYS SPECIALIST RECRUITMENT LTD,439969,551.15,773695871
BEIS,Met Office,2020-03-09,04 CONTRACTORS,STRATEGIC INVESTMENT,HAYS SPECIALIST RECRUITMENT LTD,439590,566.25,773695871
BEIS,Met Office,2020-03-04,08 SOFTWARE LICENCES,STRATEGIC INVESTMENT,IBM UNITED KINGDOM LTD,438779,-2620,107328000
BEIS,Met Office,2020-03-13,08 SOFTWARE LICENCES,STRATEGIC INVESTMENT,IBM UNITED KINGDOM LTD,438544,2620,107328000
BEIS,Met Office,2020-03-03,04 CONTRACTORS,STRATEGIC INVESTMENT,OUTSOURCE UK LIMITED,439246,7076.85,576118722
BEIS,Met Office,2020-03-09,04 CONTRACTORS,STRATEGIC INVESTMENT,OUTSOURCE UK LIMITED,439591,11322.96,576118722
BEIS,Met Office,2020-03-09,04 CONTRACTORS,STRATEGIC INVESTMENT,QUALSERV CONSULTING LTD,439573,900,719067718
BEIS,Met Office,2020-03-04,04 CONTRACTORS,STRATEGIC INVESTMENT,REED,439289,5200,835515525
BEIS,Met Office,2020-03-10,11 SERVICES,STRATEGIC INVESTMENT,ROWE IT LTD,439574,7500,924964394
BEIS,Met Office,2020-03-09,11 SERVICES,STRATEGIC INVESTMENT,ROWE IT LTD,439547,72837.5,924964394
BEIS,Met Office,2020-03-04,11 SERVICES,STRATEGIC INVESTMENT,SOFTCAT LTD,439355,2352,491848503
BEIS,Met Office,2020-03-09,04 CONTRACTORS,STRATEGIC INVESTMENT,SOLOS CONSULTANTS LTD,439545,6300,812035476
BEIS,Met Office,2020-03-09,04 CONTRACTORS,STRATEGIC INVESTMENT,SOLOS CONSULTANTS LTD,439576,8140.8,812035476
BEIS,Met Office,2020-03-09,04 CONTRACTORS,STRATEGIC INVESTMENT,SOLOS CONSULTANTS LTD,439533,8988.4,812035476
BEIS,Met Office,2020-03-09,04 CONTRACTORS,STRATEGIC INVESTMENT,SOLOS CONSULTANTS LTD,439575,13520,812035476
BEIS,Met Office,2020-03-09,04 CONTRACTORS,STRATEGIC INVESTMENT,SOLOS CONSULTANTS LTD,439565,13984.2,812035476
BEIS,Met Office,2020-03-09,04 CONTRACTORS,STRATEGIC INVESTMENT,SOLOS CONSULTANTS LTD,439548,15600,812035476
BEIS,Met Office,2020-03-09,04 CONTRACTORS,STRATEGIC INVESTMENT,SOLOS CONSULTANTS LTD,439561,17680,812035476
BEIS,Met Office,2020-03-11,04 CONTRACTORS,STRATEGIC INVESTMENT,WA CONSULTANTS LTD,439816,2237.8,876328977
BEIS,Met Office,2020-03-12,04 CONTRACTORS,STRATEGIC INVESTMENT,WA CONSULTANTS LTD,439940,5160.97,876328977
BEIS,Met Office,2020-03-13,04 CONTRACTORS,STRATEGIC INVESTMENT,WA CONSULTANTS LTD,439962,6796.65,876328977
BEIS,Met Office,2020-03-06,11 SERVICES,TECHNOLOGY,A I MEDIA,439477,567,994262974
BEIS,Met Office,2020-03-09,11 SERVICES,TECHNOLOGY,AKAMAI TECHNOLOGIES LTD,439642,4248.48,745091237
BEIS,Met Office,2020-03-09,11 SERVICES,TECHNOLOGY,AKAMAI TECHNOLOGIES LTD,439642,43554.55,745091237
BEIS,Met Office,2020-03-04,11 SERVICES,TECHNOLOGY,AMAZON WEB SERVICES INC.,9707,229.04,N/A
BEIS,Met Office,2020-03-04,11 SERVICES,TECHNOLOGY,AMAZON WEB SERVICES INC.,9696,11477.63,N/A
BEIS,Met Office,2020-03-04,11 SERVICES,TECHNOLOGY,AMAZON WEB SERVICES INC.,9693,27974.31,N/A
BEIS,Met Office,2020-03-04,11 SERVICES,TECHNOLOGY,AMAZON WEB SERVICES INC.,9693,32898.39,N/A
BEIS,Met Office,2020-03-05,11 SERVICES,TECHNOLOGY,AUTOMATION LOGIC,439543,71871.25,985044595
BEIS,Met Office,2020-03-26,04 CONTRACTORS,TECHNOLOGY,BAE SYSTEMS APPLIED INTELLIGENCE LIMITED,440293,13699.76,GB641407169
BEIS,Met Office,2020-03-06,11 SERVICES,TECHNOLOGY,BAE SYSTEMS APPLIED INTELLIGENCE LIMITED,438942,14813.15,GB641407169
BEIS,Met Office,2020-03-26,11 SERVICES,TECHNOLOGY,BEIS,440287,2744.07,888825550
BEIS,Met Office,2020-03-03,08 SOFTWARE LICENCES,TECHNOLOGY,CLEARVISION (CM) LIMITED,436570,9321.88,881364801
BEIS,Met Office,2020-03-03,08 SOFTWARE LICENCES,TECHNOLOGY,CLEARVISION (CM) LIMITED,436570,17525.13,881364801
BEIS,Met Office,2020-03-16,11 SERVICES,TECHNOLOGY,CLOUDREACH EUROPE LIMITED,440022,7110,978187168
BEIS,Met Office,2020-03-26,11 SERVICES,TECHNOLOGY,CLOUDREACH EUROPE LIMITED,440286,10765.24,978187168
BEIS,Met Office,2020-03-13,INFORMATION TECHNOLOGY,TECHNOLOGY,COMPUTACENTER (UK) LTD,439539,-5996.81,490334648
BEIS,Met Office,2020-03-26,10 EQUIPMENT MAINTENANCE,TECHNOLOGY,COMPUTACENTER (UK) LTD,440368,94.25,490334648
BEIS,Met Office,2020-03-13,INFORMATION TECHNOLOGY,TECHNOLOGY,COMPUTACENTER (UK) LTD,439989,425.81,490334648
BEIS,Met Office,2020-03-13,INFORMATION TECHNOLOGY,TECHNOLOGY,COMPUTACENTER (UK) LTD,439989,457.87,490334648
BEIS,Met Office,2020-03-26,INFORMATION TECHNOLOGY,TECHNOLOGY,COMPUTACENTER (UK) LTD,440283,1039.8,490334648
BEIS,Met Office,2020-03-26,08 SOFTWARE LICENCES,TECHNOLOGY,COMPUTACENTER (UK) LTD,440306,1288.62,490334648
BEIS,Met Office,2020-03-03,10 EQUIPMENT MAINTENANCE,TECHNOLOGY,COMPUTACENTER (UK) LTD,439311,2865.01,490334648
BEIS,Met Office,2020-03-13,INFORMATION TECHNOLOGY,TECHNOLOGY,COMPUTACENTER (UK) LTD,439569,5995.81,490334648
BEIS,Met Office,2020-03-17,10 EQUIPMENT MAINTENANCE,TECHNOLOGY,COMPUTACENTER (UK) LTD,440188,56434.78,490334648
BEIS,Met Office,2020-03-17,08 SOFTWARE LICENCES,TECHNOLOGY,DYNATRACE LTD,440183,25999,600390291
BEIS,Met Office,2020-03-26,04 CONTRACTORS,TECHNOLOGY,FDM GROUP LIMITED,440271,1350,583540529
BEIS,Met Office,2020-03-10,04 CONTRACTORS,TECHNOLOGY,FDM GROUP LIMITED,439734,4590,583540529
BEIS,Met Office,2020-03-10,04 CONTRACTORS,TECHNOLOGY,FDM GROUP LIMITED,439736,5130,583540529
BEIS,Met Office,2020-03-10,04 CONTRACTORS,TECHNOLOGY,FDM GROUP LIMITED,439733,8100,583540529
BEIS,Met Office,2020-03-10,04 CONTRACTORS,TECHNOLOGY,FDM GROUP LIMITED,439735,8100,583540529
BEIS,Met Office,2020-03-10,04 CONTRACTORS,TECHNOLOGY,FDM GROUP LIMITED,439737,9450,583540529
BEIS,Met Office,2020-03-10,04 CONTRACTORS,TECHNOLOGY,GCS IT RECRUITMENT SPECIALISTS LTD,439730,2275,896156575
BEIS,Met Office,2020-03-13,04 CONTRACTORS,TECHNOLOGY,GCS IT RECRUITMENT SPECIALISTS LTD,439975,3750,896156575
BEIS,Met Office,2020-03-10,04 CONTRACTORS,TECHNOLOGY,GCS IT RECRUITMENT SPECIALISTS LTD,439732,8190,896156575
BEIS,Met Office,2020-03-03,04 CONTRACTORS,TECHNOLOGY,GCS IT RECRUITMENT SPECIALISTS LTD,439301,14250,896156575
BEIS,Met Office,2020-03-25,08 SOFTWARE LICENCES,TECHNOLOGY,GITHUB INC,9726,154.83,-
BEIS,Met Office,2020-03-04,08 SOFTWARE LICENCES,TECHNOLOGY,GOOGLE IRELAND LTD,439330,35.39,6388047V
BEIS,Met Office,2020-03-02,04 CONTRACTORS,TECHNOLOGY,HAYS SPECIALIST RECRUITMENT LTD,439225,573.8,773695871
BEIS,Met Office,2020-03-09,04 CONTRACTORS,TECHNOLOGY,HAYS SPECIALIST RECRUITMENT LTD,439587,573.8,773695871
BEIS,Met Office,2020-03-13,04 CONTRACTORS,TECHNOLOGY,HAYS SPECIALIST RECRUITMENT LTD,439973,588.9,773695871
BEIS,Met Office,2020-03-26,04 CONTRACTORS,TECHNOLOGY,HAYS SPECIALIST RECRUITMENT LTD,440321,588.9,773695871
BEIS,Met Office,2020-03-11,08 SOFTWARE LICENCES,TECHNOLOGY,"IBL SOFTWARE ENGINEERING, SPOL S.R.O.",438720,253.43,SK2020241883
BEIS,Met Office,2020-03-11,08 SOFTWARE LICENCES,TECHNOLOGY,"IBL SOFTWARE ENGINEERING, SPOL S.R.O.",438720,1454.77,SK2020241883
BEIS,Met Office,2020-03-11,08 SOFTWARE LICENCES,TECHNOLOGY,"IBL SOFTWARE ENGINEERING, SPOL S.R.O.",438720,1853.91,SK2020241883
BEIS,Met Office,2020-03-11,08 SOFTWARE LICENCES,TECHNOLOGY,"IBL SOFTWARE ENGINEERING, SPOL S.R.O.",438720,3053.29,SK2020241883
BEIS,Met Office,2020-03-11,08 SOFTWARE LICENCES,TECHNOLOGY,"IBL SOFTWARE ENGINEERING, SPOL S.R.O.",438720,21810.6,SK2020241883
BEIS,Met Office,2020-03-17,11 SERVICES,TECHNOLOGY,IBM UNITED KINGDOM LTD,440166,6062.7,107328000
BEIS,Met Office,2020-03-03,08 SOFTWARE LICENCES,TECHNOLOGY,IBM UNITED KINGDOM LTD,439295,8958,107328000
BEIS,Met Office,2020-03-04,08 SOFTWARE LICENCES,TECHNOLOGY,IBM UNITED KINGDOM LTD,439354,9327.7,107328000
BEIS,Met Office,2020-03-06,11 SERVICES,TECHNOLOGY,KNOWLEDGEABLE LTD,439470,3250,864 3662 03
BEIS,Met Office,2020-03-25,08 SOFTWARE LICENCES,TECHNOLOGY,LINBIT HA-SOLUTIONS GMBH,21239,3309.03,ATU64320988
BEIS,Met Office,2020-03-02,11 SERVICES,TECHNOLOGY,MICROSOFT LTD,439162,74176.08,724594615
BEIS,Met Office,2020-03-25,11 SERVICES,TECHNOLOGY,NEW RELIC INC,9725,11180.27,-
BEIS,Met Office,2020-03-03,04 CONTRACTORS,TECHNOLOGY,OUTSOURCE UK LIMITED,438714,-410,576118722
BEIS,Met Office,2020-03-03,04 CONTRACTORS,TECHNOLOGY,OUTSOURCE UK LIMITED,433166,410,576118722
BEIS,Met Office,2020-03-11,04 CONTRACTORS,TECHNOLOGY,OUTSOURCE UK LIMITED,439814,5505.36,576118722
BEIS,Met Office,2020-03-03,04 CONTRACTORS,TECHNOLOGY,OUTSOURCE UK LIMITED,439245,7650,576118722
BEIS,Met Office,2020-03-02,04 CONTRACTORS,TECHNOLOGY,QUALSERV CONSULTING LTD,439178,7328.85,719067718
BEIS,Met Office,2020-03-02,04 CONTRACTORS,TECHNOLOGY,QUALSERV CONSULTING LTD,439130,9586.17,719067718
BEIS,Met Office,2020-03-02,04 CONTRACTORS,TECHNOLOGY,QUALSERV CONSULTING LTD,439187,11932,719067718
BEIS,Met Office,2020-03-13,08 SOFTWARE LICENCES,TECHNOLOGY,QUEST SOFTWARE INTERNATIONAL LTD,439991,7528.45,581955404
BEIS,Met Office,2020-03-11,08 SOFTWARE LICENCES,TECHNOLOGY,QUESTBACK AS,438713,500,919005242
BEIS,Met Office,2020-03-04,04 CONTRACTORS,TECHNOLOGY,REED,439289,8763.45,835515525
BEIS,Met Office,2020-03-04,04 CONTRACTORS,TECHNOLOGY,REED,439289,8992,835515525
BEIS,Met Office,2020-03-04,04 CONTRACTORS,TECHNOLOGY,REED,439289,10909.8,835515525
BEIS,Met Office,2020-03-04,04 CONTRACTORS,TECHNOLOGY,REED,439289,12990,835515525
BEIS,Met Office,2020-03-13,08 SOFTWARE LICENCES,TECHNOLOGY,SNOWFLAKE SOFTWARE LTD,439729,17988.75,785055409
BEIS,Met Office,2020-03-13,08 SOFTWARE LICENCES,TECHNOLOGY,SNOWFLAKE SOFTWARE LTD,439729,99937.5,785055409
BEIS,Met Office,2020-03-13,INFORMATION TECHNOLOGY,TECHNOLOGY,SOFTWARE BOX LIMITED,439986,50,734245248
BEIS,Met Office,2020-03-02,08 SOFTWARE LICENCES,TECHNOLOGY,SOFTWARE BOX LIMITED,438822,132,734245248
BEIS,Met Office,2020-03-13,INFORMATION TECHNOLOGY,TECHNOLOGY,SOFTWARE BOX LIMITED,439986,174,734245248
BEIS,Met Office,2020-03-11,11 SERVICES,TECHNOLOGY,SOFTWARE BOX LIMITED,439740,3200,734245248
BEIS,Met Office,2020-03-26,INFORMATION TECHNOLOGY,TECHNOLOGY,SOFTWARE BOX LIMITED,440184,16798,734245248
BEIS,Met Office,2020-03-09,08 SOFTWARE LICENCES,TECHNOLOGY,SOFTWARE BOX LIMITED,439414,18064.2,734245248
BEIS,Met Office,2020-03-02,08 SOFTWARE LICENCES,TECHNOLOGY,SOFTWAREONE,438949,48.72,GB 942 5301 43
BEIS,Met Office,2020-03-02,08 SOFTWARE LICENCES,TECHNOLOGY,SOFTWAREONE,438949,52.08,GB 942 5301 43
BEIS,Met Office,2020-03-02,08 SOFTWARE LICENCES,TECHNOLOGY,SOFTWAREONE,438949,108.84,GB 942 5301 43
BEIS,Met Office,2020-03-02,08 SOFTWARE LICENCES,TECHNOLOGY,SOFTWAREONE,438818,129.6,GB 942 5301 43
BEIS,Met Office,2020-03-02,08 SOFTWARE LICENCES,TECHNOLOGY,SOFTWAREONE,438949,173.52,GB 942 5301 43
BEIS,Met Office,2020-03-02,08 SOFTWARE LICENCES,TECHNOLOGY,SOFTWAREONE,438949,213.12,GB 942 5301 43
BEIS,Met Office,2020-03-02,08 SOFTWARE LICENCES,TECHNOLOGY,SOFTWAREONE,438818,232.2,GB 942 5301 43
BEIS,Met Office,2020-03-11,08 SOFTWARE LICENCES,TECHNOLOGY,SOFTWAREONE,439655,270,GB 942 5301 43
BEIS,Met Office,2020-03-02,08 SOFTWARE LICENCES,TECHNOLOGY,SOFTWAREONE,438949,338.28,GB 942 5301 43
BEIS,Met Office,2020-03-02,08 SOFTWARE LICENCES,TECHNOLOGY,SOFTWAREONE,438949,390.48,GB 942 5301 43
BEIS,Met Office,2020-03-02,08 SOFTWARE LICENCES,TECHNOLOGY,SOFTWAREONE,438818,580,GB 942 5301 43
BEIS,Met Office,2020-03-02,08 SOFTWARE LICENCES,TECHNOLOGY,SOFTWAREONE,438818,654,GB 942 5301 43
BEIS,Met Office,2020-03-02,08 SOFTWARE LICENCES,TECHNOLOGY,SOFTWAREONE,438949,930.39,GB 942 5301 43
BEIS,Met Office,2020-03-02,08 SOFTWARE LICENCES,TECHNOLOGY,SOFTWAREONE,438949,1002.96,GB 942 5301 43
BEIS,Met Office,2020-03-02,08 SOFTWARE LICENCES,TECHNOLOGY,SOFTWAREONE,438949,1607.76,GB 942 5301 43
BEIS,Met Office,2020-03-11,08 SOFTWARE LICENCES,TECHNOLOGY,SOFTWAREONE,439654,3475.8,GB 942 5301 43
BEIS,Met Office,2020-03-02,08 SOFTWARE LICENCES,TECHNOLOGY,SOFTWAREONE,438949,4634.4,GB 942 5301 43
BEIS,Met Office,2020-03-02,08 SOFTWARE LICENCES,TECHNOLOGY,SOFTWAREONE,438949,4732.8,GB 942 5301 43
BEIS,Met Office,2020-03-02,08 SOFTWARE LICENCES,TECHNOLOGY,SOFTWAREONE,438949,6156,GB 942 5301 43
BEIS,Met Office,2020-03-02,08 SOFTWARE LICENCES,TECHNOLOGY,SOFTWAREONE,438818,7599.8,GB 942 5301 43
BEIS,Met Office,2020-03-02,08 SOFTWARE LICENCES,TECHNOLOGY,SOFTWAREONE,438949,16584.48,GB 942 5301 43
BEIS,Met Office,2020-03-02,08 SOFTWARE LICENCES,TECHNOLOGY,SOFTWAREONE,438949,18648,GB 942 5301 43
BEIS,Met Office,2020-03-02,08 SOFTWARE LICENCES,TECHNOLOGY,SOFTWAREONE,438949,19817.6,GB 942 5301 43
BEIS,Met Office,2020-03-02,08 SOFTWARE LICENCES,TECHNOLOGY,SOFTWAREONE,438949,19849.44,GB 942 5301 43
BEIS,Met Office,2020-03-02,08 SOFTWARE LICENCES,TECHNOLOGY,SOFTWAREONE,438949,33891.12,GB 942 5301 43
BEIS,Met Office,2020-03-02,08 SOFTWARE LICENCES,TECHNOLOGY,SOFTWAREONE,438949,35970,GB 942 5301 43
BEIS,Met Office,2020-03-02,08 SOFTWARE LICENCES,TECHNOLOGY,SOFTWAREONE,438949,60861.6,GB 942 5301 43
BEIS,Met Office,2020-03-02,08 SOFTWARE LICENCES,TECHNOLOGY,SOFTWAREONE,438949,71226.4,GB 942 5301 43
BEIS,Met Office,2020-03-02,08 SOFTWARE LICENCES,TECHNOLOGY,SOFTWAREONE,438949,93846.6,GB 942 5301 43
BEIS,Met Office,2020-03-02,08 SOFTWARE LICENCES,TECHNOLOGY,SOFTWAREONE,438949,359242.08,GB 942 5301 43
BEIS,Met Office,2020-03-12,04 CONTRACTORS,TECHNOLOGY,SOLOS CONSULTANTS LTD,440009,-3744,812035476
BEIS,Met Office,2020-03-09,04 CONTRACTORS,TECHNOLOGY,SOLOS CONSULTANTS LTD,439518,4563.54,812035476
BEIS,Met Office,2020-03-09,04 CONTRACTORS,TECHNOLOGY,SOLOS CONSULTANTS LTD,439563,5682.26,812035476
BEIS,Met Office,2020-03-09,04 CONTRACTORS,TECHNOLOGY,SOLOS CONSULTANTS LTD,439538,5872.9,812035476
BEIS,Met Office,2020-03-09,04 CONTRACTORS,TECHNOLOGY,SOLOS CONSULTANTS LTD,439531,7641.47,812035476
BEIS,Met Office,2020-03-09,04 CONTRACTORS,TECHNOLOGY,SOLOS CONSULTANTS LTD,439525,8140.8,812035476
BEIS,Met Office,2020-03-09,04 CONTRACTORS,TECHNOLOGY,SOLOS CONSULTANTS LTD,439554,8988.4,812035476
BEIS,Met Office,2020-03-09,04 CONTRACTORS,TECHNOLOGY,SOLOS CONSULTANTS LTD,439567,8988.4,812035476
BEIS,Met Office,2020-03-06,04 CONTRACTORS,TECHNOLOGY,SOLOS CONSULTANTS LTD,439515,10400,812035476
BEIS,Met Office,2020-03-09,04 CONTRACTORS,TECHNOLOGY,SOLOS CONSULTANTS LTD,439530,10675,812035476
BEIS,Met Office,2020-03-09,04 CONTRACTORS,TECHNOLOGY,SOLOS CONSULTANTS LTD,439540,11495,812035476
BEIS,Met Office,2020-03-09,04 CONTRACTORS,TECHNOLOGY,SOLOS CONSULTANTS LTD,439526,11745.8,812035476
BEIS,Met Office,2020-03-09,04 CONTRACTORS,TECHNOLOGY,SOLOS CONSULTANTS LTD,439564,12561,812035476
BEIS,Met Office,2020-03-09,04 CONTRACTORS,TECHNOLOGY,SOLOS CONSULTANTS LTD,439527,12905.76,812035476
BEIS,Met Office,2020-03-09,04 CONTRACTORS,TECHNOLOGY,SOLOS CONSULTANTS LTD,439566,13000,812035476
BEIS,Met Office,2020-03-06,04 CONTRACTORS,TECHNOLOGY,SOLOS CONSULTANTS LTD,439514,13780,812035476
BEIS,Met Office,2020-03-09,04 CONTRACTORS,TECHNOLOGY,SOLOS CONSULTANTS LTD,439551,14163.75,812035476
BEIS,Met Office,2020-03-09,04 CONTRACTORS,TECHNOLOGY,SOLOS CONSULTANTS LTD,439559,22464,812035476
BEIS,Met Office,2020-03-09,07 EQUIPMENT,TECHNOLOGY,SSE CONTRACTING LTD,439513,1174.83,570118464
BEIS,Met Office,2020-03-04,11 SERVICES,TECHNOLOGY,SSE CONTRACTING LTD,439249,9817.36,570118464
BEIS,Met Office,2020-03-06,11 SERVICES,TECHNOLOGY,UKCLOUD LTD,439384,1537.2,172647982
BEIS,Met Office,2020-03-18,08 SOFTWARE LICENCES,TECHNOLOGY,URBAN AIRSHIP INC.,437224,154,-
BEIS,Met Office,2020-03-18,08 SOFTWARE LICENCES,TECHNOLOGY,URBAN AIRSHIP INC.,437225,154,-
BEIS,Met Office,2020-03-18,08 SOFTWARE LICENCES,TECHNOLOGY,URBAN AIRSHIP INC.,439950,168.94,-
BEIS,Met Office,2020-03-18,08 SOFTWARE LICENCES,TECHNOLOGY,URBAN AIRSHIP INC.,440112,168.94,-
BEIS,Met Office,2020-03-11,08 SOFTWARE LICENCES,TECHNOLOGY,URBAN AIRSHIP INC.,439483,17228.28,-
BEIS,Met Office,2020-03-05,04 CONTRACTORS,TECHNOLOGY,WA CONSULTANTS LTD,439388,4632.5,876328977
BEIS,Met Office,2020-03-05,04 CONTRACTORS,TECHNOLOGY,WA CONSULTANTS LTD,439389,5950,876328977
BEIS,Met Office,2020-03-09,04 CONTRACTORS,TECHNOLOGY,WA CONSULTANTS LTD,439646,8925,876328977
BEIS,Met Office,2020-03-05,04 CONTRACTORS,TECHNOLOGY,WA CONSULTANTS LTD,439387,10761,876328977
BEIS,Met Office,2020-03-16,04 CONTRACTORS,TECHNOLOGY,WA CONSULTANTS LTD,440021,10770.6,876328977
BEIS,Met Office,2020-03-02,04 CONTRACTORS,TECHNOLOGY,WA CONSULTANTS LTD,439188,12360,876328977
BEIS,Met Office,2020-03-09,04 CONTRACTORS,TECHNOLOGY,WA CONSULTANTS LTD,439474,14625,876328977
BEIS,Met Office,2020-03-04,11 SERVICES,TECHNOLOGY,WIREFAST LTD,439252,2882.46,749536001
BEIS,Met Office,2020-03-04,11 SERVICES,TECHNOLOGY,WIREFAST LTD,439251,6694.68,749536001
